Workbook

Sheet Instructions
A1: Manufacturer | B1: Bati Orient
A2: File as | B2: B
A3: Product Code | B3: A
A4: CCTD Effective Date | B4: 1/1/25 (Updated)
A8: Enter your Company Name
B10: Click on "Index" to set the print area for the price list index
B11: Then you can send it to print
B14: Click on "Suggested Price List" to set the print area for Conestoga Tile's suggested price list.
B15: Then you can send it to print
B18: Enter your discount codes if you want a personal net cost sheet.
B20: Product
B21: Code | C21: Disc. %
B22: =+B3 -> A
B24: Click on "Your Cost" to set the print area for your personal cost report.
B25: Then you can send it to print
A28: Discount: | B28: To help establish your price list, enter the gross profit percent for each type of product.
B29: If you want to use Conestoga Tile's list price, leave them blank.
A31: Round Nickel: | B31: If you always want your price to round to the nearest nickel, enter "YES".
B32: If you enter "NO", it will NOT round to the nearest nickel.
A34: Ending Cents: | B34: If you always want your price to end with a certain cents, enter that cent value.
B35: If you leave it "blank" will NOT round to this cent value.
B37: Group | C37: GP Margin | D37: GP Margin % for | F37: Round Nickel | G37: add/subtract | H37: Ending Cents
B38: 1 | D38: Field Tile | F38: No | G38: 0
B39: 2 | D39: Trim | F39: No | G39: 0
B40: 3 | D40: Decos | F40: No | G40: 0
B41: 4 | D41: 0 | F41: No | G41: 0
B42: 5 | D42: 0 | F42: No | G42: 0
B43: 6 | D43: 0 | F43: No | G43: 0
B44: 7 | D44: 0 | F44: No | G44: 0
A46: If you want to manually adjust your price list, hit "F5" and go to "Customer_Cost" to manually adjust pricing.
A47: You can enter a value in the column labeled "Adj." to change your price manually.
B49: Click on "Your Price Calculation" to set the print area for your personal cost calculation report.
B50: Then you can send it to print
B53: Click on "Your Price List" to set the print area for your personal price list.
B54: Then you can send it to print
H55: Yes
A57: If you have any questions on how to best use this spreadsheet, please feel free to contact
A58: Jim Vogel at (800) 422-6860, ext. 4201 or via e-mail at jimvogel@cctd.com

Sheet Index
F3: ="File '"&Instructions!B2&"' - "&Instructions!B1 -> File 'B' - Bati Orient
A6: ="Price List Index - "&Instructions!B4 -> Price List Index - 1/1/25 (Updated)
A11: Page | C11: Series | E11: Product Type
A12: 1 | C12: Décor & Style | E12: ARNO01 - ECO12
A13: 2 | C13: Décor & Style | E13: ECO13 - GAMI63R/30
A14: 3 | C14: Décor & Style | E14: GAMI74 - MAGR47
A15: 4 | C15: Décor & Style | E15: MAGR88 - MAMI185
A16: 5 | C16: Décor & Style | E16: MAMI186 - PIMI27
A17: 6 | C17: Décor & Style | E17: PIMI28 - VEMI170
A18: 7 | C18: Décor & Style | E18: VENO02 - VEVI02
A19: 7 | C19: Cement Tiles | E19: CIBE01 - CIMI09
A20: 8 | C20: Cement Tiles | E20: CIMI13 - CIMI48
A49: This price list is available electronically on an Excel spreadsheet at www.conestogatile.com/pricelists.
A51: The spreadsheet has many special features to assist you. Apply your discount to generate your net costs for your purchasing department. Apply your standard gross margin percentage or custom prices to generate your own custom price list for your showroom. Print out individual price list for each series that can be attached to the back of your sample boards for easy reference.

Sheet Price List
B1: Field Tile | E1: Size | G1: Field | P1: SF/CTN | S1: =IF(Suggested="Yes",AA1,AG1) -> 0 | T1: SF | U1: =+Instructions!$B$3 -> A | W1: =+Instructions!$C$22 -> 0 | X1: =ROUND($AA1*(1-W1)+0.004999,2) -> 0 | Z1: new | AA1: 0 | AB1: =+W1 -> 0 | AC1: 0 | AD1: =(AG1-AC1)/AG1 ->  | AF1: 1 | AG1: =SUM(AJ1:AL1)+AE1 -> 0 | AJ1: =ROUND(AC1/(1-VLOOKUP(AF1,Group,2,FALSE)),2) -> 0 | AK1: =IF(VLOOKUP(AF1,Group,5,FALSE)="YES",VLOOKUP(ROUND(ROUND(AJ1,1)-AJ1,2),Round,2,FALSE)+VLOOKUP(AF1,Group,6,FALSE),0) -> 0 | AL1: =IF(VLOOKUP(AF1,Group,7,FALSE)="",0,ROUND(AJ1-0.04999,1)-AJ1+AM1) -> 0 | AM1: =IF(VLOOKUP(AF1,Group,7,FALSE)="","",VLOOKUP(AF1,Group,7,FALSE)) ->  | AO1: X
B2: Trim | E2: Size | G2: Shape | I2: Description | S2: =IF(Suggested="Yes",AA2,AG2) -> 0 | T2: EA | U2: =+Instructions!$B$3 -> A | W2: =+Instructions!$C$22 -> 0 | X2: 0 | Z2: new | AA2: 0 | AB2: 0 | AC2: 0 | AF2: 2 | AG2: 0 | AJ2: 0 | AK2: 0 | AL2: 0 | AO2: X
B3: Decos | E3: Size | G3: Shape | I3: Description | S3: 0.05 | T3: EA | U3: =+Instructions!$B$3 -> A | W3: =+Instructions!$C$22 -> 0 | X3: 0.05 | Z3: new | AA3: 0.05 | AB3: 0 | AC3: 0.05 | AD3: 0 | AF3: 3 | AG3: 0.05 | AJ3: 0.05 | AK3: 0 | AL3: 0 | AO3: X
B4: 0 | E4: Size | G4: Shape | I4: Description | S4: 0 | T4: EA | U4: =+Instructions!$B$3 -> A | W4: =+Instructions!$C$22 -> 0 | X4: 0 | Z4: new | AA4: 0 | AB4: 0 | AC4: 0 | AF4: 4 | AG4: 0 | AJ4: 0 | AK4: 0 | AL4: 0 | AO4: X
B5: 0 | E5: Size | G5: Shape | I5: Description | S5: 0 | T5: EA | U5: =+Instructions!$B$3 -> A | W5: =+Instructions!$C$22 -> 0 | X5: 0 | Z5: new | AA5: 0 | AB5: 0 | AC5: 0 | AF5: 5 | AG5: 0 | AJ5: 0 | AK5: 0 | AL5: 0 | AO5: X
B6: 0 | E6: Size | G6: Shape | I6: Description | S6: 0 | T6: EA | U6: =+Instructions!$B$3 -> A | W6: =+Instructions!$C$22 -> 0 | X6: 0 | Z6: new | AA6: 0 | AB6: 0 | AC6: 0 | AF6: 6 | AG6: 0 | AJ6: 0 | AK6: 0 | AL6: 0 | AO6: X
B7: 0 | E7: Size | G7: Shape | I7: Description | S7: 0 | T7: EA | U7: =+Instructions!$B$3 -> A | W7: =+Instructions!$C$22 -> 0 | X7: 0 | Z7: new | AA7: 0 | AB7: 0 | AC7: 0 | AF7: 7 | AG7: 0 | AJ7: 0 | AK7: 0 | AL7: 0 | AO7: X
B8: Format | Q8: Stock | R8: a | S8: 1000 | T8: ABC | W8: 0.1 | X8: 1000 | Z8: ABC | AA8: 1000 | AB8: 0.1 | AC8: 1000 | AD8: 0.1 | AE8: 10 | AG8: 1000 | AO8: X
AO9: X
O10: Price List | W10: Cust. Cost | Z10: Customer Cost Calculation | AO10: X
D11: Sizes & Shapes | O11: Full Carton | Q11: Stock | R11: Note | S11: =IF(Suggested="Yes",AA11,AG11) -> List Price | T11: U/M | U11: Code | W11: Disc. | X11: Net | Z11: Chg | AA11: List Price | AB11: Disc | AC11: Act. Cost | AD11: GP% | AE11: Adj. | AF11: Group | AG11: Price | AJ11: Calc Price | AK11: .05 Round | AL11: Cents | AM11: Round to | AO11: X
AO12: X
O13: ="File '"&Instructions!B2&"' - "&Instructions!B1 -> File 'B' - Bati Orient | W13: Cost | AG13: Retail Price Calculations | AO13: X
T14: =+Instructions!B4 -> 1/1/25 (Updated) | AE14: =TODAY() -> 2025-04-30 | AO14: X
N15: =IF(Instructions!C8="","",+Instructions!C8) ->  | AO15: X
C16: ="Product Code '"&Instructions!B3&"'" -> Product Code 'A' | AG16: =IF(Instructions!$C$8="","",Instructions!$C$8) ->  | AO16: X
AO17: X
C18: Sizes & Shapes | O18: Full Carton | Q18: Stock | R18: Note | S18: =+S$11 -> List Price | T18: U/M | U18: =+U$11 -> Code | W18: Disc. | X18: Net | Z18: Chg | AA18: List Price | AB18: =+AB$11 -> Disc | AC18: Act. Cost | AD18: GP% | AE18: Adj. | AF18: =+AF$11 -> Group | AG18: Price | AJ18: Calc Price | AK18: .05 Round | AL18: Cents | AM18: Round to | AO18: X
C19: ALL ITEMS MARKED WITH PACKAGING QUANTITY ARE SOLD IN MULTIPLES OF THAT QUANTITY ONLY | AO19: X
AO20: X
C21: DÉCOR & STYLE | R21: Item # Lookup: | S21: BO
AO22: X
A23: 9.75 | B23: Decos | E23: 12" x 12" | G23: Mosaic | J23: ARNO01 | L23: Black Slate 1" x 1" | S23: =IF(Suggested="Yes",AA23,AG23) -> 52.5 | T23: EA | U23: =+Instructions!$B$3 -> A | W23: =+Instructions!$C$22 -> 0 | X23: =ROUND($AA23*(1-W23)+0.004999,2) -> 52.5 | AA23: 52.5 | AB23: =+W23 -> 0 | AC23: 52.5 | AD23: =(AG23-AC23)/AG23 -> 0 | AF23: 3 | AG23: =SUM(AJ23:AL23)+AE23 -> 52.5 | AJ23: =ROUND(AC23/(1-VLOOKUP(AF23,Group,2,FALSE)),2) -> 52.5 | AK23: =IF(VLOOKUP(AF23,Group,5,FALSE)="YES",VLOOKUP(ROUND(ROUND(AJ23,1)-AJ23,2),Round,2,FALSE)+VLOOKUP(AF23,Group,6,FALSE),0) -> 0 | AL23: =IF(VLOOKUP(AF23,Group,7,FALSE)="",0,ROUND(AJ23-0.04999,1)-AJ23+AM23) -> 0 | AM23: =IF(VLOOKUP(AF23,Group,7,FALSE)="","",VLOOKUP(AF23,Group,7,FALSE)) ->  | AO23: X
B24: Decos | E24: 12" x 12" | G24: Mosaic | J24: ARNO02 | L24: Black Slate 3/4" x 1-5/8" Brick | S24: 52.5 | T24: EA | U24: =+Instructions!$B$3 -> A | W24: =+Instructions!$C$22 -> 0 | X24: 52.5 | AA24: 52.5 | AB24: 0 | AC24: 52.5 | AD24: 0 | AF24: 3 | AG24: 52.5 | AJ24: 52.5 | AK24: 0 | AL24: 0 | AO24: X
B25: Decos | E25: 4-3/4" x 12" | G25: Border | J25: ARNO03 | L25: Black Slate | S25: 33.5 | T25: EA | U25: =+Instructions!$B$3 -> A | W25: =+Instructions!$C$22 -> 0 | X25: 33.5 | AA25: 33.5 | AB25: 0 | AC25: 33.5 | AD25: 0 | AF25: 3 | AG25: 33.5 | AJ25: 33.5 | AK25: 0 | AL25: 0 | AO25: X
B26: Decos | E26: 6" x 12" x 1/2" | G26: Mosaic | J26: ARNO14 | L26: Grey Wall Slate | S26: 25.15 | T26: EA | U26: =+Instructions!$B$3 -> A | W26: =+Instructions!$C$22 -> 0 | X26: 25.15 | AA26: 25.15 | AB26: 0 | AC26: 25.15 | AD26: 0 | AF26: 3 | AG26: 25.15 | AJ26: 25.15 | AK26: 0 | AL26: 0 | AO26: X
B27: Decos | E27: 4" x 14" | G27: Wall Cladding | J27: ARNO20 | L27: Black Slate | P27: 12 PCS/CTN | S27: 20.25 | T27: EA | U27: =+Instructions!$B$3 -> A | W27: =+Instructions!$C$22 -> 0 | X27: 20.25 | AA27: 20.25 | AB27: =+W27 -> 0 | AC27: 20.25 | AD27: 0 | AF27: 3 | AG27: 20.25 | AJ27: 20.25 | AK27: 0 | AL27: 0 | AO27: X
B28: Decos | E28: 12" x 12" | G28: Mosaic | J28: ARNO22 | L28: Black Slate Baguette Squares | S28: 34.95 | T28: EA | U28: =+Instructions!$B$3 -> A | W28: =+Instructions!$C$22 -> 0 | X28: 34.95 | AA28: 34.95 | AB28: 0 | AC28: 34.95 | AD28: 0 | AF28: 3 | AG28: 34.95 | AJ28: 34.95 | AK28: 0 | AL28: 0 | AO28: X
B29: Decos | E29: 12" x 12" | G29: Mosaic | J29: ARRO01 | L29: Rust Slate 1" x 1" | S29: 57.3 | T29: EA | U29: =+Instructions!$B$3 -> A | W29: =+Instructions!$C$22 -> 0 | X29: 57.3 | AA29: 57.3 | AB29: =+W29 -> 0 | AC29: 57.3 | AD29: 0 | AF29: 3 | AG29: 57.3 | AJ29: 57.3 | AK29: 0 | AL29: 0 | AO29: X
B30: Decos | E30: 12" x 12" | G30: Mosaic | J30: ARRO02 | L30: Rust Slate 3/4" x 1-5/8" | S30: 57.3 | T30: EA | U30: =+Instructions!$B$3 -> A | W30: =+Instructions!$C$22 -> 0 | X30: 57.3 | AA30: 57.3 | AB30: 0 | AC30: 57.3 | AD30: 0 | AF30: 3 | AG30: 57.3 | AJ30: 57.3 | AK30: 0 | AL30: 0 | AO30: X
B31: Decos | E31: 4-3/4" x 12" | G31: Border | J31: ARRO03 | L31: Rust Slate | S31: 34 | T31: EA | U31: =+Instructions!$B$3 -> A | W31: =+Instructions!$C$22 -> 0 | X31: 34 | AA31: 34 | AB31: 0 | AC31: 34 | AD31: 0 | AF31: 3 | AG31: 34 | AJ31: 34 | AK31: 0 | AL31: 0 | AO31: X
B32: Decos | E32: 12" x 11.6" | G32: Mosaic | J32: ARRO16 | L32: Beige/Brown Slate/Glass Baguette | S32: 88.75 | T32: EA | U32: =+Instructions!$B$3 -> A | W32: =+Instructions!$C$22 -> 0 | X32: 88.75 | AA32: 88.75 | AB32: 0 | AC32: 88.75 | AD32: 0 | AF32: 3 | AG32: 88.75 | AJ32: 88.75 | AK32: 0 | AL32: 0 | AO32: X
B33: Decos | E33: 12" x 12" | G33: Mosaic | J33: ARRO17 | L33: Brown Slate/Beige Brown Glass Glossy 5/8" x 5/8" | R33: a | S33: 88.7 | T33: EA | U33: =+Instructions!$B$3 -> A | W33: =+Instructions!$C$22 -> 0 | X33: 88.7 | AA33: 88.7 | AB33: 0 | AC33: 88.7 | AD33: 0 | AF33: 3 | AG33: 88.7 | AJ33: 88.7 | AK33: 0 | AL33: 0 | AO33: X
B34: Decos | E34: 4" x 14" | G34: Wall Cladding | J34: ARRO19 | L34: Rust Slate | P34: 12 PCS/CTN | S34: 21.25 | T34: EA | U34: =+Instructions!$B$3 -> A | W34: =+Instructions!$C$22 -> 0 | X34: 21.25 | AA34: 21.25 | AB34: =+W34 -> 0 | AC34: 21.25 | AD34: 0 | AF34: 3 | AG34: 21.25 | AJ34: 21.25 | AK34: 0 | AL34: 0 | AO34: X
B35: Decos | E35: 12.2" x 12.2" | G35: Mosaic | J35: BEGR03 | L35: Grey Concrete Circle Mix | S35: =IF(Suggested="Yes",AA35,AG35) -> 57.8 | T35: EA | U35: =+Instructions!$B$3 -> A | W35: =+Instructions!$C$22 -> 0 | X35: =ROUND($AA35*(1-W35)+0.004999,2) -> 57.8 | Z35: new | AA35: 57.8 | AB35: =+W35 -> 0 | AC35: =+X35 -> 57.8 | AD35: =(AG35-AC35)/AG35 -> 0 | AF35: 3 | AG35: =SUM(AJ35:AL35)+AE35 -> 57.8 | AJ35: =ROUND(AC35/(1-VLOOKUP(AF35,Group,2,FALSE)),2) -> 57.8 | AK35: =IF(VLOOKUP(AF35,Group,5,FALSE)="YES",VLOOKUP(ROUND(ROUND(AJ35,1)-AJ35,2),Round,2,FALSE)+VLOOKUP(AF35,Group,6,FALSE),0) -> 0 | AL35: =IF(VLOOKUP(AF35,Group,7,FALSE)="",0,ROUND(AJ35-0.04999,1)-AJ35+AM35) -> 0 | AM35: =IF(VLOOKUP(AF35,Group,7,FALSE)="","",VLOOKUP(AF35,Group,7,FALSE)) ->  | AO35: X
B36: Decos | E36: 11.7" x 11.7" | G36: Mosaic | J36: BEGR04 | L36: Grey Concrete Multi Star Mix | S36: 57.8 | T36: EA | U36: =+Instructions!$B$3 -> A | W36: =+Instructions!$C$22 -> 0 | X36: 57.8 | Z36: new | AA36: 57.8 | AB36: 0 | AC36: 57.8 | AD36: 0 | AF36: 3 | AG36: 57.8 | AJ36: 57.8 | AK36: 0 | AL36: 0 | AO36: X
B37: Decos | E37: 12" x 12" | G37: Mosaic | J37: BEMI13 | L37: Red White Square Mix | S37: 57.8 | T37: EA | U37: =+Instructions!$B$3 -> A | W37: =+Instructions!$C$22 -> 0 | X37: 57.8 | Z37: new | AA37: 57.8 | AB37: 0 | AC37: 57.8 | AD37: 0 | AF37: 3 | AG37: 57.8 | AJ37: 57.8 | AK37: 0 | AL37: 0 | AO37: X
B38: Decos | E38: 12" x 12" | G38: Mosaic | J38: BEMI14 | L38: Grey Mix Square Mix | S38: =IF(Suggested="Yes",AA38,AG38) -> 57.8 | T38: EA | U38: =+Instructions!$B$3 -> A | W38: =+Instructions!$C$22 -> 0 | X38: =ROUND($AA38*(1-W38)+0.004999,2) -> 57.8 | Z38: new | AA38: 57.8 | AB38: =+W38 -> 0 | AC38: =+X38 -> 57.8 | AD38: =(AG38-AC38)/AG38 -> 0 | AF38: 3 | AG38: =SUM(AJ38:AL38)+AE38 -> 57.8 | AJ38: =ROUND(AC38/(1-VLOOKUP(AF38,Group,2,FALSE)),2) -> 57.8 | AK38: =IF(VLOOKUP(AF38,Group,5,FALSE)="YES",VLOOKUP(ROUND(ROUND(AJ38,1)-AJ38,2),Round,2,FALSE)+VLOOKUP(AF38,Group,6,FALSE),0) -> 0 | AL38: =IF(VLOOKUP(AF38,Group,7,FALSE)="",0,ROUND(AJ38-0.04999,1)-AJ38+AM38) -> 0 | AM38: =IF(VLOOKUP(AF38,Group,7,FALSE)="","",VLOOKUP(AF38,Group,7,FALSE)) ->  | AO38: X
B39: Decos | E39: 12.2" x 12.2" | G39: Mosaic | J39: BERO01 | L39: Red Concrete Circle Mix | S39: =IF(Suggested="Yes",AA39,AG39) -> 57.8 | T39: EA | U39: =+Instructions!$B$3 -> A | W39: =+Instructions!$C$22 -> 0 | X39: =ROUND($AA39*(1-W39)+0.004999,2) -> 57.8 | Z39: new | AA39: 57.8 | AB39: =+W39 -> 0 | AC39: =+X39 -> 57.8 | AD39: =(AG39-AC39)/AG39 -> 0 | AF39: 3 | AG39: =SUM(AJ39:AL39)+AE39 -> 57.8 | AJ39: =ROUND(AC39/(1-VLOOKUP(AF39,Group,2,FALSE)),2) -> 57.8 | AK39: =IF(VLOOKUP(AF39,Group,5,FALSE)="YES",VLOOKUP(ROUND(ROUND(AJ39,1)-AJ39,2),Round,2,FALSE)+VLOOKUP(AF39,Group,6,FALSE),0) -> 0 | AL39: =IF(VLOOKUP(AF39,Group,7,FALSE)="",0,ROUND(AJ39-0.04999,1)-AJ39+AM39) -> 0 | AM39: =IF(VLOOKUP(AF39,Group,7,FALSE)="","",VLOOKUP(AF39,Group,7,FALSE)) ->  | AO39: X
B40: Decos | E40: 11.7" x 11.7" | G40: Mosaic | J40: BERO02 | L40: Red Concrete Multi Star Mix | S40: =IF(Suggested="Yes",AA40,AG40) -> 57.8 | T40: EA | U40: =+Instructions!$B$3 -> A | W40: =+Instructions!$C$22 -> 0 | X40: =ROUND($AA40*(1-W40)+0.004999,2) -> 57.8 | Z40: new | AA40: 57.8 | AB40: =+W40 -> 0 | AC40: =+X40 -> 57.8 | AD40: =(AG40-AC40)/AG40 -> 0 | AF40: 3 | AG40: =SUM(AJ40:AL40)+AE40 -> 57.8 | AJ40: =ROUND(AC40/(1-VLOOKUP(AF40,Group,2,FALSE)),2) -> 57.8 | AK40: =IF(VLOOKUP(AF40,Group,5,FALSE)="YES",VLOOKUP(ROUND(ROUND(AJ40,1)-AJ40,2),Round,2,FALSE)+VLOOKUP(AF40,Group,6,FALSE),0) -> 0 | AL40: =IF(VLOOKUP(AF40,Group,7,FALSE)="",0,ROUND(AJ40-0.04999,1)-AJ40+AM40) -> 0 | AM40: =IF(VLOOKUP(AF40,Group,7,FALSE)="","",VLOOKUP(AF40,Group,7,FALSE)) ->  | AO40: X
B41: Decos | E41: 12.6" x 12.6" | G41: Mosaic | J41: BOBO08 | L41: Fossil Wood Stone Beige Brown Mix | S41: 61.85 | T41: EA | U41: =+Instructions!$B$3 -> A | W41: =+Instructions!$C$22 -> 0 | X41: 61.85 | AA41: 61.85 | AB41: 0 | AC41: 61.85 | AD41: 0 | AF41: 3 | AG41: 61.85 | AJ41: 61.85 | AK41: 0 | AL41: 0 | AO41: X
B42: Decos | E42: 13" x 11.8" | G42: Mosaic | J42: BOBO09 | L42: Fossil Wood Stone Beige Brown Mix Baguette | S42: 71.4 | T42: EA | U42: =+Instructions!$B$3 -> A | W42: =+Instructions!$C$22 -> 0 | X42: 71.4 | AA42: 71.4 | AB42: 0 | AC42: 71.4 | AD42: 0 | AF42: 3 | AG42: 71.4 | AJ42: 71.4 | AK42: 0 | AL42: 0 | AO42: X
B43: Decos | E43: 12" x 12" x 0.4" | G43: Mosaic | J43: BOCA01 | L43: Coffee Tree Logs Wood Log Sliced Round | R43: b | S43: 54.3 | T43: EA | U43: =+Instructions!$B$3 -> A | W43: =+Instructions!$C$22 -> 0 | X43: 54.3 | AA43: 54.3 | AB43: =+W43 -> 0 | AC43: 54.3 | AD43: 0 | AF43: 3 | AG43: 54.3 | AJ43: 54.3 | AK43: 0 | AL43: 0 | AO43: X
B44: Decos | E44: 11.8" x 11.8" | G44: Mosaic | J44: BOFO01 | L44: Cubic Fossil Wood Stone | S44: 77.3 | T44: EA | U44: =+Instructions!$B$3 -> A | W44: =+Instructions!$C$22 -> 0 | X44: 77.3 | AA44: 77.3 | AB44: 0 | AC44: 77.3 | AD44: 0 | AF44: 3 | AG44: 77.3 | AJ44: 77.3 | AK44: 0 | AL44: 0 | AO44: X
B45: Decos | E45: 12" x 11.8" | G45: Mosaic | J45: BOFO03 | L45: New Fossil Wood Brick | S45: 80.15 | T45: EA | U45: =+Instructions!$B$3 -> A | W45: =+Instructions!$C$22 -> 0 | X45: 80.15 | Z45: new | AA45: 80.15 | AB45: 0 | AC45: 80.15 | AD45: 0 | AF45: 3 | AG45: 80.15 | AJ45: 80.15 | AK45: 0 | AL45: 0 | AO45: X
B46: Decos | E46: 13" x 14.4" | G46: Mosaic | J46: BOMA01 | L46: Natural Wood | R46: c | S46: 47.2 | T46: EA | U46: =+Instructions!$B$3 -> A | W46: =+Instructions!$C$22 -> 0 | X46: 47.2 | AA46: 47.2 | AB46: 0 | AC46: 47.2 | AD46: 0 | AF46: 3 | AG46: 47.2 | AJ46: 47.2 | AK46: 0 | AL46: 0 | AO46: X
B47: Decos | E47: 13" x 14.4" | G47: Mosaic | J47: BOMI01 | L47: Washed Wood | R47: c | S47: 47.2 | T47: EA | U47: =+Instructions!$B$3 -> A | W47: =+Instructions!$C$22 -> 0 | X47: 47.2 | AA47: 47.2 | AB47: 0 | AC47: 47.2 | AD47: 0 | AF47: 3 | AG47: 47.2 | AJ47: 47.2 | AK47: 0 | AL47: 0 | AO47: X
B48: Decos | E48: 11.9" x 11.8" | G48: Mosaic | J48: CEBE09 | L48: 2" x 4" Glazed Ceramic Beige Mix Rough Surface | S48: 76.4 | T48: EA | U48: =+Instructions!$B$3 -> A | W48: =+Instructions!$C$22 -> 0 | X48: 76.4 | AA48: 76.4 | AB48: 0 | AC48: 76.4 | AD48: 0 | AF48: 3 | AG48: 76.4 | AJ48: 76.4 | AK48: 0 | AL48: 0 | AO48: X
B49: Decos | E49: 11.8" x 12.2" | G49: Mosaic | J49: CEBE10 | L49: Slate Stone Beige Glazed Ceramic 2" x 6" Brick | S49: =IF(Suggested="Yes",AA49,AG49) -> 58.05 | T49: EA | U49: =+Instructions!$B$3 -> A | W49: =+Instructions!$C$22 -> 0 | X49: =ROUND($AA49*(1-W49)+0.004999,2) -> 58.05 | AA49: 58.05 | AB49: =+W49 -> 0 | AC49: =+X49 -> 58.05 | AD49: =(AG49-AC49)/AG49 -> 0 | AF49: 3 | AG49: =SUM(AJ49:AL49)+AE49 -> 58.05 | AJ49: =ROUND(AC49/(1-VLOOKUP(AF49,Group,2,FALSE)),2) -> 58.05 | AK49: =IF(VLOOKUP(AF49,Group,5,FALSE)="YES",VLOOKUP(ROUND(ROUND(AJ49,1)-AJ49,2),Round,2,FALSE)+VLOOKUP(AF49,Group,6,FALSE),0) -> 0 | AL49: =IF(VLOOKUP(AF49,Group,7,FALSE)="",0,ROUND(AJ49-0.04999,1)-AJ49+AM49) -> 0 | AM49: =IF(VLOOKUP(AF49,Group,7,FALSE)="","",VLOOKUP(AF49,Group,7,FALSE)) ->  | AO49: X
B50: Decos | E50: 11.8" x 11.8" | G50: Mosaic | J50: CEBL17 | L50: Ceramic Patchwork Square Blue | S50: 63.6 | T50: EA | U50: =+Instructions!$B$3 -> A | W50: =+Instructions!$C$22 -> 0 | X50: 63.6 | AA50: 63.6 | AB50: 0 | AC50: 63.6 | AD50: 0 | AF50: 3 | AG50: 63.6 | AJ50: 63.6 | AK50: 0 | AL50: 0 | AO50: X
B51: Decos | E51: 11.8" x 11.8" | G51: Mosaic | J51: CEBL18 | L51: Ceramic Patchwork Square Blue & White Mix | S51: =IF(Suggested="Yes",AA51,AG51) -> 63.6 | T51: EA | U51: =+Instructions!$B$3 -> A | W51: =+Instructions!$C$22 -> 0 | X51: =ROUND($AA51*(1-W51)+0.004999,2) -> 63.6 | AA51: 63.6 | AB51: =+W51 -> 0 | AC51: 63.6 | AD51: =(AG51-AC51)/AG51 -> 0 | AF51: 3 | AG51: =SUM(AJ51:AL51)+AE51 -> 63.6 | AJ51: =ROUND(AC51/(1-VLOOKUP(AF51,Group,2,FALSE)),2) -> 63.6 | AK51: =IF(VLOOKUP(AF51,Group,5,FALSE)="YES",VLOOKUP(ROUND(ROUND(AJ51,1)-AJ51,2),Round,2,FALSE)+VLOOKUP(AF51,Group,6,FALSE),0) -> 0 | AL51: =IF(VLOOKUP(AF51,Group,7,FALSE)="",0,ROUND(AJ51-0.04999,1)-AJ51+AM51) -> 0 | AM51: =IF(VLOOKUP(AF51,Group,7,FALSE)="","",VLOOKUP(AF51,Group,7,FALSE)) ->  | AO51: X
B52: Decos | E52: 11.8" x 11.8" | G52: Mosaic | J52: CEBL19 | L52: Ceramic Patchwork Diamond Blue | S52: 66.75 | T52: EA | U52: =+Instructions!$B$3 -> A | W52: =+Instructions!$C$22 -> 0 | X52: 66.75 | AA52: 66.75 | AB52: 0 | AC52: 66.75 | AD52: 0 | AF52: 3 | AG52: 66.75 | AJ52: 66.75 | AK52: 0 | AL52: 0 | AO52: X
B53: Decos | E53: 11.6" x 11.5" | G53: Mosaic | J53: CEBL25 | L53: Mini Subway White Glazed Porcelain 2" x 4" | S53: =IF(Suggested="Yes",AA53,AG53) -> 26.65 | T53: EA | U53: =+Instructions!$B$3 -> A | W53: =+Instructions!$C$22 -> 0 | X53: =ROUND($AA53*(1-W53)+0.004999,2) -> 26.65 | AA53: 26.65 | AB53: 0 | AC53: 26.65 | AD53: =(AG53-AC53)/AG53 -> 0 | AF53: 3 | AG53: =SUM(AJ53:AL53)+AE53 -> 26.65 | AJ53: =ROUND(AC53/(1-VLOOKUP(AF53,Group,2,FALSE)),2) -> 26.65 | AK53: =IF(VLOOKUP(AF53,Group,5,FALSE)="YES",VLOOKUP(ROUND(ROUND(AJ53,1)-AJ53,2),Round,2,FALSE)+VLOOKUP(AF53,Group,6,FALSE),0) -> 0 | AL53: =IF(VLOOKUP(AF53,Group,7,FALSE)="",0,ROUND(AJ53-0.04999,1)-AJ53+AM53) -> 0 | AM53: =IF(VLOOKUP(AF53,Group,7,FALSE)="","",VLOOKUP(AF53,Group,7,FALSE)) ->  | AO53: X
B54: Decos | E54: 11.8" x 11.8" | G54: Mosaic | J54: CEBL29 | L54: Blue & White Palm Tree Pattern Glazed Ceramic 3" x 3" | S54: 76.45 | T54: EA | U54: =+Instructions!$B$3 -> A | W54: =+Instructions!$C$22 -> 0 | X54: 76.45 | AA54: 76.45 | AB54: 0 | AC54: 76.45 | AD54: 0 | AF54: 3 | AG54: 76.45 | AJ54: 76.45 | AK54: 0 | AL54: 0 | AO54: X
B55: Decos | E55: 11.6" x 11.6" | G55: Mosaic | J55: CEBL30 | L55: Blue Mix Geometric Pattern Glazed Ceramic 4" x 4" | S55: 52.65 | T55: EA | U55: =+Instructions!$B$3 -> A | W55: =+Instructions!$C$22 -> 0 | X55: 52.65 | AA55: 52.65 | AB55: 0 | AC55: 52.65 | AD55: 0 | AF55: 3 | AG55: 52.65 | AJ55: 52.65 | AK55: 0 | AL55: 0 | AO55: X
B56: Decos | E56: 11.8" x 11.8" | G56: Mosaic | J56: CEBL36 | L56: Ceramic Wood Rectangles Mix Grey 0.7" x 4" | S56: 83.6 | T56: EA | U56: =+Instructions!$B$3 -> A | W56: =+Instructions!$C$22 -> 0 | X56: 83.6 | AA56: 83.6 | AB56: 0 | AC56: 83.6 | AD56: 0 | AF56: 3 | AG56: 83.6 | AJ56: 83.6 | AK56: 0 | AL56: 0 | AO56: X
B57: Decos | E57: 11.2" x 11.2" | G57: Mosaic | J57: CEBL47 | L57: Zellige Glazed Ceramic White 3" x 3" | S57: 45.9 | T57: EA | U57: =+Instructions!$B$3 -> A | W57: =+Instructions!$C$22 -> 0 | X57: 45.9 | AA57: 45.9 | AB57: 0 | AC57: 45.9 | AD57: 0 | AF57: 3 | AG57: 45.9 | AJ57: 45.9 | AK57: 0 | AL57: 0 | AO57: X
B58: Decos | E58: 11.2" x 11.2" | G58: Mosaic | J58: CEBL48 | L58: Zellige Glazed Ceramic Soft Blue Mix 3" x 3" | S58: =IF(Suggested="Yes",AA58,AG58) -> 45.9 | T58: EA | U58: =+Instructions!$B$3 -> A | W58: =+Instructions!$C$22 -> 0 | X58: =ROUND($AA58*(1-W58)+0.004999,2) -> 45.9 | AA58: 45.9 | AB58: =+W58 -> 0 | AC58: =+X58 -> 45.9 | AD58: =(AG58-AC58)/AG58 -> 0 | AF58: 3 | AG58: =SUM(AJ58:AL58)+AE58 -> 45.9 | AJ58: =ROUND(AC58/(1-VLOOKUP(AF58,Group,2,FALSE)),2) -> 45.9 | AK58: =IF(VLOOKUP(AF58,Group,5,FALSE)="YES",VLOOKUP(ROUND(ROUND(AJ58,1)-AJ58,2),Round,2,FALSE)+VLOOKUP(AF58,Group,6,FALSE),0) -> 0 | AL58: =IF(VLOOKUP(AF58,Group,7,FALSE)="",0,ROUND(AJ58-0.04999,1)-AJ58+AM58) -> 0 | AM58: =IF(VLOOKUP(AF58,Group,7,FALSE)="","",VLOOKUP(AF58,Group,7,FALSE)) ->  | AO58: X
B59: Decos | E59: 11.2" x 11.6" | G59: Mosaic | J59: CEBL49 | L59: White Brick Pattern Glossy Glazed Ceramic 2" x 6" | S59: 29.45 | T59: EA | U59: =+Instructions!$B$3 -> A | W59: =+Instructions!$C$22 -> 0 | X59: 29.45 | AA59: 29.45 | AB59: 0 | AC59: 29.45 | AD59: 0 | AF59: 3 | AG59: 29.45 | AJ59: 29.45 | AK59: 0 | AL59: 0 | AO59: X
B60: Decos | E60: 11.8" x 11.8" | G60: Mosaic | J60: CEGR28 | L60: Silver Industrial Relief Pattern Glazed Ceramic 4" x 4" | S60: 75.15 | T60: EA | U60: =+Instructions!$B$3 -> A | W60: =+Instructions!$C$22 -> 0 | X60: 75.15 | AA60: 75.15 | AB60: =+W60 -> 0 | AC60: 75.15 | AD60: 0 | AF60: 3 | AG60: 75.15 | AJ60: 75.15 | AK60: 0 | AL60: 0 | AO60: X
B61: Decos | E61: 11.8" x 11.4" | G61: Mosaic | J61: CEGR29 | L61: Silver Industrial Linear Relief Pattern Glazed Ceramic 2.8" x 6" | S61: =IF(Suggested="Yes",AA61,AG61) -> 75.15 | T61: EA | U61: =+Instructions!$B$3 -> A | W61: =+Instructions!$C$22 -> 0 | X61: =ROUND($AA61*(1-W61)+0.004999,2) -> 75.15 | AA61: 75.15 | AB61: =+W61 -> 0 | AC61: =+X61 -> 75.15 | AD61: =(AG61-AC61)/AG61 -> 0 | AF61: 3 | AG61: =SUM(AJ61:AL61)+AE61 -> 75.15 | AJ61: =ROUND(AC61/(1-VLOOKUP(AF61,Group,2,FALSE)),2) -> 75.15 | AK61: =IF(VLOOKUP(AF61,Group,5,FALSE)="YES",VLOOKUP(ROUND(ROUND(AJ61,1)-AJ61,2),Round,2,FALSE)+VLOOKUP(AF61,Group,6,FALSE),0) -> 0 | AL61: =IF(VLOOKUP(AF61,Group,7,FALSE)="",0,ROUND(AJ61-0.04999,1)-AJ61+AM61) -> 0 | AM61: =IF(VLOOKUP(AF61,Group,7,FALSE)="","",VLOOKUP(AF61,Group,7,FALSE)) ->  | AO61: X
B62: Decos | E62: 11.9" x 11.8" | G62: Mosaic | J62: CEGR32 | L62: 2" x 4" Glazed Ceramic Grey Beige Mix Rough Surface | S62: =IF(Suggested="Yes",AA62,AG62) -> 76.4 | T62: EA | U62: =+Instructions!$B$3 -> A | W62: =+Instructions!$C$22 -> 0 | X62: =ROUND($AA62*(1-W62)+0.004999,2) -> 76.4 | AA62: 76.4 | AB62: =+W62 -> 0 | AC62: =+X62 -> 76.4 | AD62: =(AG62-AC62)/AG62 -> 0 | AF62: 3 | AG62: =SUM(AJ62:AL62)+AE62 -> 76.4 | AJ62: =ROUND(AC62/(1-VLOOKUP(AF62,Group,2,FALSE)),2) -> 76.4 | AK62: =IF(VLOOKUP(AF62,Group,5,FALSE)="YES",VLOOKUP(ROUND(ROUND(AJ62,1)-AJ62,2),Round,2,FALSE)+VLOOKUP(AF62,Group,6,FALSE),0) -> 0 | AL62: =IF(VLOOKUP(AF62,Group,7,FALSE)="",0,ROUND(AJ62-0.04999,1)-AJ62+AM62) -> 0 | AM62: =IF(VLOOKUP(AF62,Group,7,FALSE)="","",VLOOKUP(AF62,Group,7,FALSE)) ->  | AO62: X
B63: Decos | E63: 11.2" x 11.2" | G63: Mosaic | J63: CEGR35 | L63: Zellige Glazed Ceramic Grey Mix 3" x 3" | S63: =IF(Suggested="Yes",AA63,AG63) -> 45.9 | T63: EA | U63: =+Instructions!$B$3 -> A | W63: =+Instructions!$C$22 -> 0 | X63: =ROUND($AA63*(1-W63)+0.004999,2) -> 45.9 | AA63: 45.9 | AB63: =+W63 -> 0 | AC63: =+X63 -> 45.9 | AD63: =(AG63-AC63)/AG63 -> 0 | AF63: 3 | AG63: =SUM(AJ63:AL63)+AE63 -> 45.9 | AJ63: =ROUND(AC63/(1-VLOOKUP(AF63,Group,2,FALSE)),2) -> 45.9 | AK63: =IF(VLOOKUP(AF63,Group,5,FALSE)="YES",VLOOKUP(ROUND(ROUND(AJ63,1)-AJ63,2),Round,2,FALSE)+VLOOKUP(AF63,Group,6,FALSE),0) -> 0 | AL63: =IF(VLOOKUP(AF63,Group,7,FALSE)="",0,ROUND(AJ63-0.04999,1)-AJ63+AM63) -> 0 | AM63: =IF(VLOOKUP(AF63,Group,7,FALSE)="","",VLOOKUP(AF63,Group,7,FALSE)) ->  | AO63: X
B64: Decos | E64: 11.8" x 12.2" | G64: Mosaic | J64: CEGR36 | L64: Slate Stone Grey Glazed Ceramic 2" x 6" Brick | S64: 45.9 | T64: EA | U64: =+Instructions!$B$3 -> A | W64: =+Instructions!$C$22 -> 0 | X64: 45.9 | AA64: 45.9 | AB64: 0 | AC64: 45.9 | AD64: 0 | AF64: 3 | AG64: 45.9 | AJ64: 45.9 | AK64: 0 | AL64: 0 | AO64: X
B65: Decos | E65: 11.8" x 11.8" | G65: Mosaic | J65: CEGR37 | L65: Grey Mix Pattern Deco Brick Matte Glazed Porcelain 1" x 3" | S65: 77.05 | T65: EA | U65: =+Instructions!$B$3 -> A | W65: =+Instructions!$C$22 -> 0 | X65: 77.05 | AA65: 77.05 | AB65: 0 | AC65: 77.05 | AD65: 0 | AF65: 3 | AG65: 77.05 | AJ65: 77.05 | AK65: 0 | AL65: 0 | AO65: X
B66: Decos | E66: 11.8" x 11.8" | G66: Mosaic | J66: CEMA04 | L66: Gold Brown Mix Flower Pattern Glazed Ceramic 3" x 3" | S66: =IF(Suggested="Yes",AA66,AG66) -> 90.4 | T66: EA | U66: =+Instructions!$B$3 -> A | W66: =+Instructions!$C$22 -> 0 | X66: =ROUND($AA66*(1-W66)+0.004999,2) -> 90.4 | AA66: 90.4 | AB66: 0 | AC66: 90.4 | AD66: =(AG66-AC66)/AG66 -> 0 | AF66: 3 | AG66: =SUM(AJ66:AL66)+AE66 -> 90.4 | AJ66: =ROUND(AC66/(1-VLOOKUP(AF66,Group,2,FALSE)),2) -> 90.4 | AK66: =IF(VLOOKUP(AF66,Group,5,FALSE)="YES",VLOOKUP(ROUND(ROUND(AJ66,1)-AJ66,2),Round,2,FALSE)+VLOOKUP(AF66,Group,6,FALSE),0) -> 0 | AL66: =IF(VLOOKUP(AF66,Group,7,FALSE)="",0,ROUND(AJ66-0.04999,1)-AJ66+AM66) -> 0 | AM66: =IF(VLOOKUP(AF66,Group,7,FALSE)="","",VLOOKUP(AF66,Group,7,FALSE)) ->  | AO66: X
B67: Decos | E67: 12" x 12" | G67: Mosaic | J67: CEMA07 | L67: Beige Brown Mix Wood 1.1" x 4" Glazed Ceramic | S67: =IF(Suggested="Yes",AA67,AG67) -> 74.9 | T67: EA | U67: =+Instructions!$B$3 -> A | W67: =+Instructions!$C$22 -> 0 | X67: =ROUND($AA67*(1-W67)+0.004999,2) -> 74.9 | AA67: 74.9 | AB67: 0 | AC67: 74.9 | AD67: =(AG67-AC67)/AG67 -> 0 | AF67: 3 | AG67: =SUM(AJ67:AL67)+AE67 -> 74.9 | AJ67: =ROUND(AC67/(1-VLOOKUP(AF67,Group,2,FALSE)),2) -> 74.9 | AK67: =IF(VLOOKUP(AF67,Group,5,FALSE)="YES",VLOOKUP(ROUND(ROUND(AJ67,1)-AJ67,2),Round,2,FALSE)+VLOOKUP(AF67,Group,6,FALSE),0) -> 0 | AL67: =IF(VLOOKUP(AF67,Group,7,FALSE)="",0,ROUND(AJ67-0.04999,1)-AJ67+AM67) -> 0 | AM67: =IF(VLOOKUP(AF67,Group,7,FALSE)="","",VLOOKUP(AF67,Group,7,FALSE)) ->  | AO67: X
B68: Decos | E68: 11.8" x 11.8" | G68: Mosaic | J68: CEMI09 | L68: Ceramic Patchwork Square Black & White Mix | S68: 61.3 | T68: EA | U68: =+Instructions!$B$3 -> A | W68: =+Instructions!$C$22 -> 0 | X68: 61.3 | AA68: 61.3 | AB68: =+W68 -> 0 | AC68: 61.3 | AD68: 0 | AF68: 3 | AG68: 61.3 | AJ68: 61.3 | AK68: 0 | AL68: 0 | AO68: X
B69: Decos | E69: 11.7" x 13.2" | G69: Mosaic | J69: CEMI45 | L69: Multi Color Beige Mix Deco Brick Pattern Matte Glazed Ceramic 1" x 3" | S69: 79.85 | T69: EA | U69: =+Instructions!$B$3 -> A | W69: =+Instructions!$C$22 -> 0 | X69: 79.85 | AA69: 79.85 | AB69: 0 | AC69: 79.85 | AD69: 0 | AF69: 3 | AG69: 79.85 | AJ69: 79.85 | AK69: 0 | AL69: 0 | AO69: X
B70: Decos | E70: 11.8" x 11.8" | G70: Mosaic | J70: CEMI46 | L70: Black & White Palm Tree Pattern Glazed Ceramic 3" x 3" | S70: =IF(Suggested="Yes",AA70,AG70) -> 79.9 | T70: EA | U70: =+Instructions!$B$3 -> A | W70: =+Instructions!$C$22 -> 0 | X70: =ROUND($AA70*(1-W70)+0.004999,2) -> 79.9 | AA70: 79.9 | AB70: 0 | AC70: 79.9 | AD70: =(AG70-AC70)/AG70 -> 0 | AF70: 3 | AG70: =SUM(AJ70:AL70)+AE70 -> 79.9 | AJ70: =ROUND(AC70/(1-VLOOKUP(AF70,Group,2,FALSE)),2) -> 79.9 | AK70: =IF(VLOOKUP(AF70,Group,5,FALSE)="YES",VLOOKUP(ROUND(ROUND(AJ70,1)-AJ70,2),Round,2,FALSE)+VLOOKUP(AF70,Group,6,FALSE),0) -> 0 | AL70: =IF(VLOOKUP(AF70,Group,7,FALSE)="",0,ROUND(AJ70-0.04999,1)-AJ70+AM70) -> 0 | AM70: =IF(VLOOKUP(AF70,Group,7,FALSE)="","",VLOOKUP(AF70,Group,7,FALSE)) ->  | AO70: X
B71: Decos | E71: 10.2" x 11.7" | G71: Mosaic | J71: CEMI47 | L71: Grey Blue Mix Triangle Glazed Ceramic 3" | S71: 59.15 | T71: EA | U71: =+Instructions!$B$3 -> A | W71: =+Instructions!$C$22 -> 0 | X71: 59.15 | AA71: 59.15 | AB71: 0 | AC71: 59.15 | AD71: 0 | AF71: 3 | AG71: 59.15 | AJ71: 59.15 | AK71: 0 | AL71: 0 | AO71: X
B72: Decos | E72: 11.8" x 11.8" | G72: Mosaic | J72: CEMI48 | L72: Rust Industrial Relief Pattern Glazed Ceramic 4" x 4" | S72: 75.15 | T72: EA | U72: =+Instructions!$B$3 -> A | W72: =+Instructions!$C$22 -> 0 | X72: 75.15 | AA72: 75.15 | AB72: 0 | AC72: 75.15 | AD72: 0 | AF72: 3 | AG72: 75.15 | AJ72: 75.15 | AK72: 0 | AL72: 0 | AO72: X
B73: Decos | E73: 11.8" x 11.4" | G73: Mosaic | J73: CEMI49 | L73: Rust Industrial Linear Relief Pattern Glazed Ceramic 2.8" x 6" | S73: 75.15 | T73: EA | U73: =+Instructions!$B$3 -> A | W73: =+Instructions!$C$22 -> 0 | X73: 75.15 | AA73: 75.15 | AB73: =+W73 -> 0 | AC73: 75.15 | AD73: 0 | AF73: 3 | AG73: 75.15 | AJ73: 75.15 | AK73: 0 | AL73: 0 | AO73: X
B74: Decos | E74: 11.8" x 11.8" | G74: Mosaic | J74: CEMI50 | L74: Ceramic Wood Rectangles Mix Beige Blue 0.7" x 4" | S74: 83.6 | T74: EA | U74: =+Instructions!$B$3 -> A | W74: =+Instructions!$C$22 -> 0 | X74: 83.6 | AA74: 83.6 | AB74: 0 | AC74: 83.6 | AD74: 0 | AF74: 3 | AG74: 83.6 | AJ74: 83.6 | AK74: 0 | AL74: 0 | AO74: X
B75: Decos | E75: 11.8" x 11.8" | G75: Mosaic | J75: CEMI51 | L75: Aztec Native Series Black & White Glazed Ceramic 4" x 4" | S75: 75.15 | T75: EA | U75: =+Instructions!$B$3 -> A | W75: =+Instructions!$C$22 -> 0 | X75: 75.15 | AA75: 75.15 | AB75: 0 | AC75: 75.15 | AD75: 0 | AF75: 3 | AG75: 75.15 | AJ75: 75.15 | AK75: 0 | AL75: 0 | AO75: X
B76: Decos | E76: 11.8" x 11.8" | G76: Mosaic | J76: CEMI52 | L76: Island Native Series Black & White Glazed Ceramic 4" x 4" | S76: 75.15 | T76: EA | U76: =+Instructions!$B$3 -> A | W76: =+Instructions!$C$22 -> 0 | X76: 75.15 | AA76: 75.15 | AB76: 0 | AC76: 75.15 | AD76: 0 | AF76: 3 | AG76: 75.15 | AJ76: 75.15 | AK76: 0 | AL76: 0 | AO76: X
B77: Decos | E77: 11.8" x 11.8" | G77: Mosaic | J77: CEMI53 | L77: Maori Native Series Black & White Glazed Ceramic 4" x 4" | S77: 75.15 | T77: EA | U77: =+Instructions!$B$3 -> A | W77: =+Instructions!$C$22 -> 0 | X77: 75.15 | AA77: 75.15 | AB77: 0 | AC77: 75.15 | AD77: 0 | AF77: 3 | AG77: 75.15 | AJ77: 75.15 | AK77: 0 | AL77: 0 | AO77: X
B78: Decos | E78: 12" x 12" | G78: Mosaic | J78: CEMI64 | L78: 4" x 4" Floral Palm Grey Beige | S78: 71.8 | T78: EA | U78: =+Instructions!$B$3 -> A | W78: =+Instructions!$C$22 -> 0 | X78: 71.8 | AA78: 71.8 | AB78: 0 | AC78: 71.8 | AD78: 0 | AF78: 3 | AG78: 71.8 | AJ78: 71.8 | AK78: 0 | AL78: 0 | AO78: X
B79: Decos | E79: 12" x 12" | G79: Mosaic | J79: CEMI67 | L79: Multicolor Wood 1.1" x 4" Glazed Ceramic | S79: =IF(Suggested="Yes",AA79,AG79) -> 78.05 | T79: EA | U79: =+Instructions!$B$3 -> A | W79: =+Instructions!$C$22 -> 0 | X79: =ROUND($AA79*(1-W79)+0.004999,2) -> 78.05 | AA79: 78.05 | AB79: =+W79 -> 0 | AC79: =+X79 -> 78.05 | AD79: =(AG79-AC79)/AG79 -> 0 | AF79: 3 | AG79: =SUM(AJ79:AL79)+AE79 -> 78.05 | AJ79: =ROUND(AC79/(1-VLOOKUP(AF79,Group,2,FALSE)),2) -> 78.05 | AK79: =IF(VLOOKUP(AF79,Group,5,FALSE)="YES",VLOOKUP(ROUND(ROUND(AJ79,1)-AJ79,2),Round,2,FALSE)+VLOOKUP(AF79,Group,6,FALSE),0) -> 0 | AL79: =IF(VLOOKUP(AF79,Group,7,FALSE)="",0,ROUND(AJ79-0.04999,1)-AJ79+AM79) -> 0 | AM79: =IF(VLOOKUP(AF79,Group,7,FALSE)="","",VLOOKUP(AF79,Group,7,FALSE)) ->  | AO79: X
B80: Decos | E80: 11.8" x 11.8" | G80: Mosaic | J80: CEMI68 | L80: 4" x 4" Floral Multicolor | S80: 77.4 | T80: EA | U80: =+Instructions!$B$3 -> A | W80: =+Instructions!$C$22 -> 0 | X80: 77.4 | AA80: 77.4 | AB80: 0 | AC80: 77.4 | AD80: 0 | AF80: 3 | AG80: 77.4 | AJ80: 77.4 | AK80: 0 | AL80: 0 | AO80: X
B81: Decos | E81: 11.6" x 11.5" | G81: Mosaic | J81: CENO31 | L81: Mini Subway Black Glazed Porcelain 2" x 4" | S81: 28.15 | T81: EA | U81: =+Instructions!$B$3 -> A | W81: =+Instructions!$C$22 -> 0 | X81: 28.15 | AA81: 28.15 | AB81: =+W81 -> 0 | AC81: =+X81 -> 28.15 | AD81: 0 | AF81: 3 | AG81: 28.15 | AJ81: 28.15 | AK81: 0 | AL81: 0 | AO81: X
B82: Decos | E82: 11.2" x 11.6" | G82: Mosaic | J82: CENO40 | L82: Black Brick Pattern Glossy Glazed Ceramic 2" x 6" | S82: 29.2 | T82: EA | U82: =+Instructions!$B$3 -> A | W82: =+Instructions!$C$22 -> 0 | X82: 29.2 | AA82: 29.2 | AB82: =+W82 -> 0 | AC82: =+X82 -> 29.2 | AD82: 0 | AF82: 3 | AG82: 29.2 | AJ82: 29.2 | AK82: 0 | AL82: 0 | AO82: X
B83: Decos | E83: 11.2" x 11.2" | G83: Mosaic | J83: CEVE16 | L83: Zellige Glazed Ceramic Soft Green Mix 3" x 3" | S83: =IF(Suggested="Yes",AA83,AG83) -> 45.9 | T83: EA | U83: =+Instructions!$B$3 -> A | W83: =+Instructions!$C$22 -> 0 | X83: =ROUND($AA83*(1-W83)+0.004999,2) -> 45.9 | AA83: 45.9 | AB83: =+W83 -> 0 | AC83: =+X83 -> 45.9 | AD83: =(AG83-AC83)/AG83 -> 0 | AF83: 3 | AG83: =SUM(AJ83:AL83)+AE83 -> 45.9 | AJ83: =ROUND(AC83/(1-VLOOKUP(AF83,Group,2,FALSE)),2) -> 45.9 | AK83: =IF(VLOOKUP(AF83,Group,5,FALSE)="YES",VLOOKUP(ROUND(ROUND(AJ83,1)-AJ83,2),Round,2,FALSE)+VLOOKUP(AF83,Group,6,FALSE),0) -> 0 | AL83: =IF(VLOOKUP(AF83,Group,7,FALSE)="",0,ROUND(AJ83-0.04999,1)-AJ83+AM83) -> 0 | AM83: =IF(VLOOKUP(AF83,Group,7,FALSE)="","",VLOOKUP(AF83,Group,7,FALSE)) ->  | AO83: X
B84: Decos | E84: 11.8" x 11.8" | G84: Mosaic | J84: ECO08 | L84: Black Slate 2" x 2" | S84: 49.4 | T84: EA | U84: =+Instructions!$B$3 -> A | W84: =+Instructions!$C$22 -> 0 | X84: 49.4 | AA84: 49.4 | AB84: 0 | AC84: 49.4 | AD84: 0 | AF84: 3 | AG84: 49.4 | AJ84: 49.4 | AK84: 0 | AL84: 0 | AO84: X
B85: Decos | E85: 11.8" x 11.8" | G85: Mosaic | J85: ECO09 | L85: Rust Slate 2" x 2" | S85: =IF(Suggested="Yes",AA85,AG85) -> 49.4 | T85: EA | U85: =+Instructions!$B$3 -> A | W85: =+Instructions!$C$22 -> 0 | X85: =ROUND($AA85*(1-W85)+0.004999,2) -> 49.4 | AA85: 49.4 | AB85: =+W85 -> 0 | AC85: =+X85 -> 49.4 | AD85: =(AG85-AC85)/AG85 -> 0 | AF85: 3 | AG85: =SUM(AJ85:AL85)+AE85 -> 49.4 | AJ85: =ROUND(AC85/(1-VLOOKUP(AF85,Group,2,FALSE)),2) -> 49.4 | AK85: =IF(VLOOKUP(AF85,Group,5,FALSE)="YES",VLOOKUP(ROUND(ROUND(AJ85,1)-AJ85,2),Round,2,FALSE)+VLOOKUP(AF85,Group,6,FALSE),0) -> 0 | AL85: =IF(VLOOKUP(AF85,Group,7,FALSE)="",0,ROUND(AJ85-0.04999,1)-AJ85+AM85) -> 0 | AM85: =IF(VLOOKUP(AF85,Group,7,FALSE)="","",VLOOKUP(AF85,Group,7,FALSE)) ->  | AO85: X
B86: Decos | E86: 11.8" x 11.8" | G86: Mosaic | J86: ECO11 | L86: Grey Mix Sliced Matte Pebble | S86: 42.45 | T86: EA | U86: =+Instructions!$B$3 -> A | W86: =+Instructions!$C$22 -> 0 | X86: 42.45 | AA86: 42.45 | AB86: 0 | AC86: 42.45 | AD86: 0 | AF86: 3 | AG86: 42.45 | AJ86: 42.45 | AK86: 0 | AL86: 0 | AO86: X
B87: Decos | E87: 11.8" x 11.8" | G87: Mosaic | J87: ECO12 | L87: Grey Mix Mini Opus Marble | S87: 36.1 | T87: EA | U87: =+Instructions!$B$3 -> A | W87: =+Instructions!$C$22 -> 0 | X87: 36.1 | AA87: 36.1 | AB87: 0 | AC87: 36.1 | AD87: 0 | AF87: 3 | AG87: 36.1 | AJ87: 36.1 | AK87: 0 | AL87: 0 | AO87: X
AO88: X
C89: continued on next page | AO89: X
C90: DÉCOR & STYLE - continued | R90: Item # Lookup: | S90: BO
AO91: X
B92: Decos | E92: 11.8" x 11.8" | G92: Mosaic | J92: ECO13 | L92: Round Marble Light & Dark Grey Mix | S92: 54.5 | T92: EA | U92: =+Instructions!$B$3 -> A | W92: =+Instructions!$C$22 -> 0 | X92: 54.5 | AA92: 54.5 | AB92: 0 | AC92: 54.5 | AD92: 0 | AF92: 3 | AG92: 54.5 | AJ92: 54.5 | AK92: 0 | AL92: 0 | AO92: X
B93: Decos | E93: 11.8" x 11.8" | G93: Mosaic | J93: ECO14 | L93: Round Marble Off White Mix | S93: =IF(Suggested="Yes",AA93,AG93) -> 54.5 | T93: EA | U93: =+Instructions!$B$3 -> A | W93: =+Instructions!$C$22 -> 0 | X93: =ROUND($AA93*(1-W93)+0.004999,2) -> 54.5 | AA93: 54.5 | AB93: =+W93 -> 0 | AC93: =+X93 -> 54.5 | AD93: =(AG93-AC93)/AG93 -> 0 | AF93: 3 | AG93: =SUM(AJ93:AL93)+AE93 -> 54.5 | AJ93: =ROUND(AC93/(1-VLOOKUP(AF93,Group,2,FALSE)),2) -> 54.5 | AK93: =IF(VLOOKUP(AF93,Group,5,FALSE)="YES",VLOOKUP(ROUND(ROUND(AJ93,1)-AJ93,2),Round,2,FALSE)+VLOOKUP(AF93,Group,6,FALSE),0) -> 0 | AL93: =IF(VLOOKUP(AF93,Group,7,FALSE)="",0,ROUND(AJ93-0.04999,1)-AJ93+AM93) -> 0 | AM93: =IF(VLOOKUP(AF93,Group,7,FALSE)="","",VLOOKUP(AF93,Group,7,FALSE)) ->  | AO93: X
B94: Decos | E94: 11.8" x 11.8" | G94: Mosaic | J94: ECO21 | L94: Glass Stripe Effect Polished 2" x 2" Grey Mix | S94: 67.55 | T94: EA | U94: =+Instructions!$B$3 -> A | W94: =+Instructions!$C$22 -> 0 | X94: 67.55 | AA94: 67.55 | AB94: 0 | AC94: 67.55 | AD94: 0 | AF94: 3 | AG94: 67.55 | AJ94: 67.55 | AK94: 0 | AL94: 0 | AO94: X
B95: Decos | E95: 11.8" x 11.8" | G95: Mosaic | J95: ECO23 | L95: Baguette Glass Polished Grey Brown Mix | S95: 67.5 | T95: EA | U95: =+Instructions!$B$3 -> A | W95: =+Instructions!$C$22 -> 0 | X95: 67.5 | AA95: 67.5 | AB95: 0 | AC95: 67.5 | AD95: 0 | AF95: 3 | AG95: 67.5 | AJ95: 67.5 | AK95: 0 | AL95: 0 | AO95: X
B96: Decos | E96: 11.8" x 11.8" | G96: Mosaic | J96: ECO25 | L96: Baguette Glass Polished Grey Mix | S96: 67.55 | T96: EA | U96: =+Instructions!$B$3 -> A | W96: =+Instructions!$C$22 -> 0 | X96: 67.55 | AA96: 67.55 | AB96: 0 | AC96: 67.55 | AD96: 0 | AF96: 3 | AG96: 67.55 | AJ96: 67.55 | AK96: 0 | AL96: 0 | AO96: X
B97: Decos | E97: 11.8" x 11.8" | G97: Mosaic | J97: ECO27 | L97: Glass Brick 1" x 2" Glossy Silver | S97: =IF(Suggested="Yes",AA97,AG97) -> 67.55 | T97: EA | U97: =+Instructions!$B$3 -> A | W97: =+Instructions!$C$22 -> 0 | X97: =ROUND($AA97*(1-W97)+0.004999,2) -> 67.55 | AA97: 67.55 | AB97: =+W97 -> 0 | AC97: =+X97 -> 67.55 | AD97: =(AG97-AC97)/AG97 -> 0 | AF97: 3 | AG97: =SUM(AJ97:AL97)+AE97 -> 67.55 | AJ97: =ROUND(AC97/(1-VLOOKUP(AF97,Group,2,FALSE)),2) -> 67.55 | AK97: =IF(VLOOKUP(AF97,Group,5,FALSE)="YES",VLOOKUP(ROUND(ROUND(AJ97,1)-AJ97,2),Round,2,FALSE)+VLOOKUP(AF97,Group,6,FALSE),0) -> 0 | AL97: =IF(VLOOKUP(AF97,Group,7,FALSE)="",0,ROUND(AJ97-0.04999,1)-AJ97+AM97) -> 0 | AM97: =IF(VLOOKUP(AF97,Group,7,FALSE)="","",VLOOKUP(AF97,Group,7,FALSE)) ->  | AO97: X
B98: Decos | E98: 12" x 12" | G98: Mosaic | J98: GABE01R | L98: Beige Matte Pebble | R98: d | S98: =IF(Suggested="Yes",AA98,AG98) -> 36.15 | T98: EA | U98: =+Instructions!$B$3 -> A | W98: =+Instructions!$C$22 -> 0 | X98: =ROUND($AA98*(1-W98)+0.004999,2) -> 36.15 | AA98: 36.15 | AB98: =+W98 -> 0 | AC98: =+X98 -> 36.15 | AD98: =(AG98-AC98)/AG98 -> 0 | AF98: 3 | AG98: =SUM(AJ98:AL98)+AE98 -> 36.15 | AJ98: =ROUND(AC98/(1-VLOOKUP(AF98,Group,2,FALSE)),2) -> 36.15 | AK98: =IF(VLOOKUP(AF98,Group,5,FALSE)="YES",VLOOKUP(ROUND(ROUND(AJ98,1)-AJ98,2),Round,2,FALSE)+VLOOKUP(AF98,Group,6,FALSE),0) -> 0 | AL98: =IF(VLOOKUP(AF98,Group,7,FALSE)="",0,ROUND(AJ98-0.04999,1)-AJ98+AM98) -> 0 | AM98: =IF(VLOOKUP(AF98,Group,7,FALSE)="","",VLOOKUP(AF98,Group,7,FALSE)) ->  | AO98: X
B99: Decos | E99: 4" x 12" | G99: Border | J99: GABE02R/30 | L99: Beige Matte Pebble | R99: d | S99: 19.85 | T99: EA | U99: =+Instructions!$B$3 -> A | W99: =+Instructions!$C$22 -> 0 | X99: 19.85 | AA99: 19.85 | AB99: 0 | AC99: 19.85 | AD99: 0 | AF99: 3 | AG99: 19.85 | AJ99: 19.85 | AK99: 0 | AL99: 0 | AO99: X
B100: Decos | E100: 12" x 12" | G100: Mosaic | J100: GABE03 | L100: Beige Polished Pebble | S100: 33.25 | T100: EA | U100: =+Instructions!$B$3 -> A | W100: =+Instructions!$C$22 -> 0 | X100: 33.25 | AA100: 33.25 | AB100: 0 | AC100: 33.25 | AD100: 0 | AF100: 3 | AG100: 33.25 | AJ100: 33.25 | AK100: 0 | AL100: 0 | AO100: X
B101: Decos | E101: 4" x 12" | G101: Border | J101: GABE04/30 | L101: Beige Polished Pebble | S101: 17.7 | T101: EA | U101: =+Instructions!$B$3 -> A | W101: =+Instructions!$C$22 -> 0 | X101: 17.7 | AA101: 17.7 | AB101: 0 | AC101: 17.7 | AD101: 0 | AF101: 3 | AG101: 17.7 | AJ101: 17.7 | AK101: 0 | AL101: 0 | AO101: X
B102: Decos | E102: 12" x 12" | G102: Mosaic | J102: GABE11 | L102: Beige Sliced Matte Pebble | S102: 43.95 | T102: EA | U102: =+Instructions!$B$3 -> A | W102: =+Instructions!$C$22 -> 0 | X102: 43.95 | AA102: 43.95 | AB102: 0 | AC102: 43.95 | AD102: 0 | AF102: 3 | AG102: 43.95 | AJ102: 43.95 | AK102: 0 | AL102: 0 | AO102: X
B103: Decos | E103: 4" x 12" | G103: Border | J103: GABE12/30 | L103: Beige Sliced Matte Pebble | S103: 21.75 | T103: EA | U103: =+Instructions!$B$3 -> A | W103: =+Instructions!$C$22 -> 0 | X103: 21.75 | AA103: 21.75 | AB103: 0 | AC103: 21.75 | AD103: 0 | AF103: 3 | AG103: 21.75 | AJ103: 21.75 | AK103: 0 | AL103: 0 | AO103: X
B104: Decos | E104: 12" x 12" | G104: Mosaic | J104: GABE14 | L104: Beige XL Sliced Matte Pebble | S104: 38.8 | T104: EA | U104: =+Instructions!$B$3 -> A | W104: =+Instructions!$C$22 -> 0 | X104: 38.8 | AA104: 38.8 | AB104: 0 | AC104: 38.8 | AD104: 0 | AF104: 3 | AG104: 38.8 | AJ104: 38.8 | AK104: 0 | AL104: 0 | AO104: X
B105: Decos | E105: 4" x 12" | G105: Border | J105: GABE15/30 | L105: Beige XL Sliced Matte Pebble | S105: 19.85 | T105: EA | U105: =+Instructions!$B$3 -> A | W105: =+Instructions!$C$22 -> 0 | X105: 19.85 | AA105: 19.85 | AB105: 0 | AC105: 19.85 | AD105: 0 | AF105: 3 | AG105: 19.85 | AJ105: 19.85 | AK105: 0 | AL105: 0 | AO105: X
B106: Decos | E106: 12" x 12" | G106: Mosaic | J106: GABE17 | L106: Beige Sliced Polished Pebble | S106: 43.05 | T106: EA | U106: =+Instructions!$B$3 -> A | W106: =+Instructions!$C$22 -> 0 | X106: 43.05 | AA106: 43.05 | AB106: 0 | AC106: 43.05 | AD106: 0 | AF106: 3 | AG106: 43.05 | AJ106: 43.05 | AK106: 0 | AL106: 0 | AO106: X
B107: Decos | E107: 4" x 12" | G107: Border | J107: GABE18/30 | L107: Beige Sliced Polished Pebble | S107: 30.3 | T107: EA | U107: =+Instructions!$B$3 -> A | W107: =+Instructions!$C$22 -> 0 | X107: 30.3 | AA107: 30.3 | AB107: 0 | AC107: 30.3 | AD107: 0 | AF107: 3 | AG107: 30.3 | AJ107: 30.3 | AK107: 0 | AL107: 0 | AO107: X
B108: Decos | E108: 11.8" x 11.8" | G108: Mosaic | J108: GABE19 | L108: Sliced Onyx Crema Polished Pebble | S108: 79.45 | T108: EA | U108: =+Instructions!$B$3 -> A | W108: =+Instructions!$C$22 -> 0 | X108: 79.45 | AA108: 79.45 | AB108: 0 | AC108: 79.45 | AD108: 0 | AF108: 3 | AG108: 79.45 | AJ108: 79.45 | AK108: 0 | AL108: 0 | AO108: X
B109: Decos | E109: 11.8" x 12" | G109: Mosaic | J109: GABE21 | L109: Onyx Light Beige Pebble | S109: 69.5 | T109: EA | U109: =+Instructions!$B$3 -> A | W109: =+Instructions!$C$22 -> 0 | X109: 69.5 | AA109: 69.5 | AB109: 0 | AC109: 69.5 | AD109: 0 | AF109: 3 | AG109: 69.5 | AJ109: 69.5 | AK109: 0 | AL109: 0 | AO109: X
B110: Decos | E110: 12" x 12" | G110: Mosaic | J110: GABL01R | L110: White Matte Pebble | R110: d | S110: 36 | T110: EA | U110: =+Instructions!$B$3 -> A | W110: =+Instructions!$C$22 -> 0 | X110: 36 | AA110: 36 | AB110: 0 | AC110: 36 | AD110: 0 | AF110: 3 | AG110: 36 | AJ110: 36 | AK110: 0 | AL110: 0 | AO110: X
B111: Decos | E111: 4" x 12" | G111: Border | J111: GABL02R/30 | L111: White Matte Pebble | R111: d | S111: 21.25 | T111: EA | U111: =+Instructions!$B$3 -> A | W111: =+Instructions!$C$22 -> 0 | X111: 21.25 | AA111: 21.25 | AB111: 0 | AC111: 21.25 | AD111: 0 | AF111: 3 | AG111: 21.25 | AJ111: 21.25 | AK111: 0 | AL111: 0 | AO111: X
B112: Decos | E112: 12" x 12" | G112: Mosaic | J112: GABL03 | L112: White Polished Pebble | S112: 33.25 | T112: EA | U112: =+Instructions!$B$3 -> A | W112: =+Instructions!$C$22 -> 0 | X112: 33.25 | AA112: 33.25 | AB112: 0 | AC112: 33.25 | AD112: 0 | AF112: 3 | AG112: 33.25 | AJ112: 33.25 | AK112: 0 | AL112: 0 | AO112: X
B113: Decos | E113: 4" x 12" | G113: Border | J113: GABL04/30 | L113: White Polished Pebble | S113: =IF(Suggested="Yes",AA113,AG113) -> 20.75 | T113: EA | U113: =+Instructions!$B$3 -> A | W113: =+Instructions!$C$22 -> 0 | X113: =ROUND($AA113*(1-W113)+0.004999,2) -> 20.75 | AA113: 20.75 | AB113: =+W113 -> 0 | AC113: 20.75 | AD113: =(AG113-AC113)/AG113 -> 0 | AF113: 3 | AG113: =SUM(AJ113:AL113)+AE113 -> 20.75 | AJ113: =ROUND(AC113/(1-VLOOKUP(AF113,Group,2,FALSE)),2) -> 20.75 | AK113: =IF(VLOOKUP(AF113,Group,5,FALSE)="YES",VLOOKUP(ROUND(ROUND(AJ113,1)-AJ113,2),Round,2,FALSE)+VLOOKUP(AF113,Group,6,FALSE),0) -> 0 | AL113: =IF(VLOOKUP(AF113,Group,7,FALSE)="",0,ROUND(AJ113-0.04999,1)-AJ113+AM113) -> 0 | AM113: =IF(VLOOKUP(AF113,Group,7,FALSE)="","",VLOOKUP(AF113,Group,7,FALSE)) ->  | AO113: X
B114: Decos | E114: 12" x 12" | G114: Mosaic | J114: GABL17 | L114: White Sliced Matte Pebble | S114: 43.95 | T114: EA | U114: =+Instructions!$B$3 -> A | W114: =+Instructions!$C$22 -> 0 | X114: 43.95 | AA114: 43.95 | AB114: 0 | AC114: 43.95 | AD114: 0 | AF114: 3 | AG114: 43.95 | AJ114: 43.95 | AK114: 0 | AL114: 0 | AO114: X
B115: Decos | E115: 4" x 12" | G115: Border | J115: GABL18/30 | L115: White Sliced Matte Pebble | S115: 23.35 | T115: EA | U115: =+Instructions!$B$3 -> A | W115: =+Instructions!$C$22 -> 0 | X115: 23.35 | AA115: 23.35 | AB115: 0 | AC115: 23.35 | AD115: 0 | AF115: 3 | AG115: 23.35 | AJ115: 23.35 | AK115: 0 | AL115: 0 | AO115: X
B116: Decos | E116: 12" x 12" | G116: Mosaic | J116: GABL20 | L116: White XL Sliced Matte Pebble | S116: 39.9 | T116: EA | U116: =+Instructions!$B$3 -> A | W116: =+Instructions!$C$22 -> 0 | X116: 39.9 | AA116: 39.9 | AB116: 0 | AC116: 39.9 | AD116: 0 | AF116: 3 | AG116: 39.9 | AJ116: 39.9 | AK116: 0 | AL116: 0 | AO116: X
B117: Decos | E117: 4" x 12" | G117: Border | J117: GABL21/30 | L117: White XL Sliced Matte Pebble | S117: 25.75 | T117: EA | U117: =+Instructions!$B$3 -> A | W117: =+Instructions!$C$22 -> 0 | X117: 25.75 | AA117: 25.75 | AB117: 0 | AC117: 25.75 | AD117: 0 | AF117: 3 | AG117: 25.75 | AJ117: 25.75 | AK117: 0 | AL117: 0 | AO117: X
B118: Decos | E118: 6" x 12" | G118: Mosaic | J118: GABL22 | L118: White Stacked Pebble | R118: e | S118: 38.7 | T118: EA | U118: =+Instructions!$B$3 -> A | W118: =+Instructions!$C$22 -> 0 | X118: 38.7 | AA118: 38.7 | AB118: 0 | AC118: 38.7 | AD118: 0 | AF118: 3 | AG118: 38.7 | AJ118: 38.7 | AK118: 0 | AL118: 0 | AO118: X
B119: Decos | E119: 12" x 12" | G119: Mosaic | J119: GABL23 | L119: White Sliced Polished Pebble | S119: 62.15 | T119: EA | U119: =+Instructions!$B$3 -> A | W119: =+Instructions!$C$22 -> 0 | X119: 62.15 | AA119: 62.15 | AB119: 0 | AC119: 62.15 | AD119: 0 | AF119: 3 | AG119: 62.15 | AJ119: 62.15 | AK119: 0 | AL119: 0 | AO119: X
B120: Decos | E120: 4" x 12" | G120: Border | J120: GABL24/30 | L120: White Sliced Polished Pebble | S120: =IF(Suggested="Yes",AA120,AG120) -> 32.85 | T120: EA | U120: =+Instructions!$B$3 -> A | W120: =+Instructions!$C$22 -> 0 | X120: =ROUND($AA120*(1-W120)+0.004999,2) -> 32.85 | AA120: 32.85 | AB120: =+W120 -> 0 | AC120: =+X120 -> 32.85 | AD120: =(AG120-AC120)/AG120 -> 0 | AF120: 3 | AG120: =SUM(AJ120:AL120)+AE120 -> 32.85 | AJ120: =ROUND(AC120/(1-VLOOKUP(AF120,Group,2,FALSE)),2) -> 32.85 | AK120: =IF(VLOOKUP(AF120,Group,5,FALSE)="YES",VLOOKUP(ROUND(ROUND(AJ120,1)-AJ120,2),Round,2,FALSE)+VLOOKUP(AF120,Group,6,FALSE),0) -> 0 | AL120: =IF(VLOOKUP(AF120,Group,7,FALSE)="",0,ROUND(AJ120-0.04999,1)-AJ120+AM120) -> 0 | AM120: =IF(VLOOKUP(AF120,Group,7,FALSE)="","",VLOOKUP(AF120,Group,7,FALSE)) ->  | AO120: X
B121: Decos | E121: 12" x 12" | G121: Mosaic | J121: GABL27 | L121: White Sliced Polished Pebble | S121: 62 | T121: EA | U121: =+Instructions!$B$3 -> A | W121: =+Instructions!$C$22 -> 0 | X121: 62 | AA121: 62 | AB121: 0 | AC121: 62 | AD121: 0 | AF121: 3 | AG121: 62 | AJ121: 62 | AK121: 0 | AL121: 0 | AO121: X
B122: Decos | E122: 12" x 12" | G122: Mosaic | J122: GAGR01R | L122: Grey Matte Pebble | R122: d | S122: 37.3 | T122: EA | U122: =+Instructions!$B$3 -> A | W122: =+Instructions!$C$22 -> 0 | X122: 37.3 | AA122: 37.3 | AB122: 0 | AC122: 37.3 | AD122: 0 | AF122: 3 | AG122: 37.3 | AJ122: 37.3 | AK122: 0 | AL122: 0 | AO122: X
B123: Decos | E123: 4" x 12" | G123: Border | J123: GAGR02R/30 | L123: Grey Matte Pebble | R123: d | S123: 21.25 | T123: EA | U123: =+Instructions!$B$3 -> A | W123: =+Instructions!$C$22 -> 0 | X123: 21.25 | AA123: 21.25 | AB123: 0 | AC123: 21.25 | AD123: 0 | AF123: 3 | AG123: 21.25 | AJ123: 21.25 | AK123: 0 | AL123: 0 | AO123: X
B124: Decos | E124: 12" x 12" | G124: Mosaic | J124: GAGR03 | L124: Grey Mix Reconstituted Pebble | R124: f | S124: 69.05 | T124: EA | U124: =+Instructions!$B$3 -> A | W124: =+Instructions!$C$22 -> 0 | X124: 69.05 | AA124: 69.05 | AB124: 0 | AC124: 69.05 | AD124: 0 | AF124: 3 | AG124: 69.05 | AJ124: 69.05 | AK124: 0 | AL124: 0 | AO124: X
B125: Decos | E125: 4" x 12" | G125: Border | J125: GAGR04/30 | L125: Grey Mix Reconstituted Pebble | R125: f | S125: 29.2 | T125: EA | U125: =+Instructions!$B$3 -> A | W125: =+Instructions!$C$22 -> 0 | X125: 29.2 | AA125: 29.2 | AB125: 0 | AC125: 29.2 | AD125: 0 | AF125: 3 | AG125: 29.2 | AJ125: 29.2 | AK125: 0 | AL125: 0 | AO125: X
B126: Decos | E126: 12" x 12" | G126: Mosaic | J126: GAGR07R | L126: Grey/Beige Mix Matte Pebble | R126: d | S126: 37.3 | T126: EA | U126: =+Instructions!$B$3 -> A | W126: =+Instructions!$C$22 -> 0 | X126: 37.3 | AA126: 37.3 | AB126: 0 | AC126: 37.3 | AD126: 0 | AF126: 3 | AG126: 37.3 | AJ126: 37.3 | AK126: 0 | AL126: 0 | AO126: X
B127: Decos | E127: 4" x 12" | G127: Border | J127: GAGR08R/30 | L127: Grey/Beige Mix Matte Pebble | R127: d | S127: 21.25 | T127: EA | U127: =+Instructions!$B$3 -> A | W127: =+Instructions!$C$22 -> 0 | X127: 21.25 | AA127: 21.25 | AB127: 0 | AC127: 21.25 | AD127: 0 | AF127: 3 | AG127: 21.25 | AJ127: 21.25 | AK127: 0 | AL127: 0 | AO127: X
B128: Decos | E128: 11.8" x 11.8" | G128: Mosaic | J128: GAGR09 | L128: Marble Striped Sliced Tumbled Grey Pebble | S128: =IF(Suggested="Yes",AA128,AG128) -> 46.05 | T128: EA | U128: =+Instructions!$B$3 -> A | W128: =+Instructions!$C$22 -> 0 | X128: =ROUND($AA128*(1-W128)+0.004999,2) -> 46.05 | AA128: 46.05 | AB128: =+W128 -> 0 | AC128: =+X128 -> 46.05 | AD128: =(AG128-AC128)/AG128 -> 0 | AF128: 3 | AG128: =SUM(AJ128:AL128)+AE128 -> 46.05 | AJ128: =ROUND(AC128/(1-VLOOKUP(AF128,Group,2,FALSE)),2) -> 46.05 | AK128: =IF(VLOOKUP(AF128,Group,5,FALSE)="YES",VLOOKUP(ROUND(ROUND(AJ128,1)-AJ128,2),Round,2,FALSE)+VLOOKUP(AF128,Group,6,FALSE),0) -> 0 | AL128: =IF(VLOOKUP(AF128,Group,7,FALSE)="",0,ROUND(AJ128-0.04999,1)-AJ128+AM128) -> 0 | AM128: =IF(VLOOKUP(AF128,Group,7,FALSE)="","",VLOOKUP(AF128,Group,7,FALSE)) ->  | AO128: X
B129: Decos | E129: 12" x 12" | G129: Mosaic | J129: GAGR10 | L129: Light Grey Mix Shiny Engineered Stone Pebble | R129: j | S129: 98.7 | T129: EA | U129: =+Instructions!$B$3 -> A | W129: =+Instructions!$C$22 -> 0 | X129: 98.7 | AA129: 98.7 | AB129: 0 | AC129: 98.7 | AD129: 0 | AF129: 3 | AG129: 98.7 | AJ129: 98.7 | AK129: 0 | AL129: 0 | AO129: X
B130: Decos | E130: 12" x 12" | G130: Mosaic | J130: GAGR11 | L130: Light Grey Mix Matte Engineered Stone Pebble | R130: j | S130: =IF(Suggested="Yes",AA130,AG130) -> 96.9 | T130: EA | U130: =+Instructions!$B$3 -> A | W130: =+Instructions!$C$22 -> 0 | X130: =ROUND($AA130*(1-W130)+0.004999,2) -> 96.9 | AA130: 96.9 | AB130: 0 | AC130: 96.9 | AD130: =(AG130-AC130)/AG130 -> 0 | AF130: 3 | AG130: =SUM(AJ130:AL130)+AE130 -> 96.9 | AJ130: =ROUND(AC130/(1-VLOOKUP(AF130,Group,2,FALSE)),2) -> 96.9 | AK130: =IF(VLOOKUP(AF130,Group,5,FALSE)="YES",VLOOKUP(ROUND(ROUND(AJ130,1)-AJ130,2),Round,2,FALSE)+VLOOKUP(AF130,Group,6,FALSE),0) -> 0 | AL130: =IF(VLOOKUP(AF130,Group,7,FALSE)="",0,ROUND(AJ130-0.04999,1)-AJ130+AM130) -> 0 | AM130: =IF(VLOOKUP(AF130,Group,7,FALSE)="","",VLOOKUP(AF130,Group,7,FALSE)) ->  | AO130: X
B131: Decos | E131: 12" x 12" | G131: Mosaic | J131: GAJA04 | L131: Golden Mix Sliced Matte Pebble | S131: 41.3 | T131: EA | U131: =+Instructions!$B$3 -> A | W131: =+Instructions!$C$22 -> 0 | X131: 41.3 | AA131: 41.3 | AB131: 0 | AC131: 41.3 | AD131: 0 | AF131: 3 | AG131: 41.3 | AJ131: 41.3 | AK131: 0 | AL131: 0 | AO131: X
B132: Decos | E132: 4" x 12" | G132: Border | J132: GAJA05/30 | L132: Golden Mix Sliced Matte Pebble | S132: 21.25 | T132: EA | U132: =+Instructions!$B$3 -> A | W132: =+Instructions!$C$22 -> 0 | X132: 21.25 | AA132: 21.25 | AB132: 0 | AC132: 21.25 | AD132: 0 | AF132: 3 | AG132: 21.25 | AJ132: 21.25 | AK132: 0 | AL132: 0 | AO132: X
B133: Decos | E133: 12" x 12" | G133: Mosaic | J133: GAJA06R | L133: Golden Matte Pebble | R133: d | S133: 37 | T133: EA | U133: =+Instructions!$B$3 -> A | W133: =+Instructions!$C$22 -> 0 | X133: 37 | AA133: 37 | AB133: 0 | AC133: 37 | AD133: 0 | AF133: 3 | AG133: 37 | AJ133: 37 | AK133: 0 | AL133: 0 | AO133: X
B134: Decos | E134: 4" x 12" | G134: Border | J134: GAJA07R/30 | L134: Golden Matte Pebble | R134: d | S134: 21.25 | T134: EA | U134: =+Instructions!$B$3 -> A | W134: =+Instructions!$C$22 -> 0 | X134: 21.25 | AA134: 21.25 | AB134: 0 | AC134: 21.25 | AD134: 0 | AF134: 3 | AG134: 21.25 | AJ134: 21.25 | AK134: 0 | AL134: 0 | AO134: X
B135: Decos | E135: 12" x 12" | G135: Mosaic | J135: GAMA01 | L135: Brown Polished Pebble | S135: 35.1 | T135: EA | U135: =+Instructions!$B$3 -> A | W135: =+Instructions!$C$22 -> 0 | X135: 35.1 | AA135: 35.1 | AB135: 0 | AC135: 35.1 | AD135: 0 | AF135: 3 | AG135: 35.1 | AJ135: 35.1 | AK135: 0 | AL135: 0 | AO135: X
B136: Decos | E136: 4" x 12" | G136: Border | J136: GAMA02/30 | L136: Brown Polished Pebble | S136: 20.75 | T136: EA | U136: =+Instructions!$B$3 -> A | W136: =+Instructions!$C$22 -> 0 | X136: 20.75 | AA136: 20.75 | AB136: 0 | AC136: 20.75 | AD136: 0 | AF136: 3 | AG136: 20.75 | AJ136: 20.75 | AK136: 0 | AL136: 0 | AO136: X
B137: Decos | E137: 12" x 12" | G137: Mosaic | J137: GAMA11 | L137: Brown Sliced Polished Pebble | S137: 60.8 | T137: EA | U137: =+Instructions!$B$3 -> A | W137: =+Instructions!$C$22 -> 0 | X137: 60.8 | AA137: 60.8 | AB137: 0 | AC137: 60.8 | AD137: 0 | AF137: 3 | AG137: 60.8 | AJ137: 60.8 | AK137: 0 | AL137: 0 | AO137: X
B138: Decos | E138: 4" x 12" | G138: Border | J138: GAMA12/30 | L138: Brown Sliced Polished Pebble | S138: 32.85 | T138: EA | U138: =+Instructions!$B$3 -> A | W138: =+Instructions!$C$22 -> 0 | X138: 32.85 | AA138: 32.85 | AB138: 0 | AC138: 32.85 | AD138: 0 | AF138: 3 | AG138: 32.85 | AJ138: 32.85 | AK138: 0 | AL138: 0 | AO138: X
B139: Decos | E139: 12" x 12" | G139: Mosaic | J139: GAMI03R | L139: White/Green Mix Matte Pebble | R139: d | S139: 35.45 | T139: EA | U139: =+Instructions!$B$3 -> A | W139: =+Instructions!$C$22 -> 0 | X139: 35.45 | AA139: 35.45 | AB139: 0 | AC139: 35.45 | AD139: 0 | AF139: 3 | AG139: 35.45 | AJ139: 35.45 | AK139: 0 | AL139: 0 | AO139: X
B140: Decos | E140: 12" x 12" | G140: Mosaic | J140: GAMI04 | L140: Mix Polished Pebble | S140: 33.25 | T140: EA | U140: =+Instructions!$B$3 -> A | W140: =+Instructions!$C$22 -> 0 | X140: 33.25 | AA140: 33.25 | AB140: 0 | AC140: 33.25 | AD140: 0 | AF140: 3 | AG140: 33.25 | AJ140: 33.25 | AK140: 0 | AL140: 0 | AO140: X
B141: Decos | E141: 4" x 12" | G141: Border | J141: GAMI10R/30 | L141: White/Green Mix Matte Pebble | R141: d | S141: 21.25 | T141: EA | U141: =+Instructions!$B$3 -> A | W141: =+Instructions!$C$22 -> 0 | X141: 21.25 | AA141: 21.25 | AB141: 0 | AC141: 21.25 | AD141: 0 | AF141: 3 | AG141: 21.25 | AJ141: 21.25 | AK141: 0 | AL141: 0 | AO141: X
B142: Decos | E142: 4" x 12" | G142: Border | J142: GAMI11/30 | L142: Mix Polished Pebble | S142: 18.8 | T142: EA | U142: =+Instructions!$B$3 -> A | W142: =+Instructions!$C$22 -> 0 | X142: 18.8 | AA142: 18.8 | AB142: 0 | AC142: 18.8 | AD142: 0 | AF142: 3 | AG142: 18.8 | AJ142: 18.8 | AK142: 0 | AL142: 0 | AO142: X
B143: Decos | E143: 12" x 12" | G143: Mosaic | J143: GAMI36 | L143: White/Beige Mix Sliced Matte Pebble | S143: 40.6 | T143: EA | U143: =+Instructions!$B$3 -> A | W143: =+Instructions!$C$22 -> 0 | X143: 40.6 | AA143: 40.6 | AB143: 0 | AC143: 40.6 | AD143: 0 | AF143: 3 | AG143: 40.6 | AJ143: 40.6 | AK143: 0 | AL143: 0 | AO143: X
B144: Decos | E144: 4" x 12" | G144: Border | J144: GAMI37/30 | L144: White/Beige Mix Sliced Matte Pebble | S144: 23.35 | T144: EA | U144: =+Instructions!$B$3 -> A | W144: =+Instructions!$C$22 -> 0 | X144: 23.35 | AA144: 23.35 | AB144: 0 | AC144: 23.35 | AD144: 0 | AF144: 3 | AG144: 23.35 | AJ144: 23.35 | AK144: 0 | AL144: 0 | AO144: X
B145: Decos | E145: 12" x 12" | G145: Mosaic | J145: GAMI38 | L145: White/Green Mix Sliced Matte Pebble | S145: 41.4 | T145: EA | U145: =+Instructions!$B$3 -> A | W145: =+Instructions!$C$22 -> 0 | X145: 41.4 | AA145: 41.4 | AB145: 0 | AC145: 41.4 | AD145: 0 | AF145: 3 | AG145: 41.4 | AJ145: 41.4 | AK145: 0 | AL145: 0 | AO145: X
B146: Decos | E146: 4" x 12" | G146: Border | J146: GAMI39/30 | L146: White/Green Mix Sliced Matte Pebble | S146: 21.25 | T146: EA | U146: =+Instructions!$B$3 -> A | W146: =+Instructions!$C$22 -> 0 | X146: 21.25 | AA146: 21.25 | AB146: 0 | AC146: 21.25 | AD146: 0 | AF146: 3 | AG146: 21.25 | AJ146: 21.25 | AK146: 0 | AL146: 0 | AO146: X
B147: Decos | E147: 12" x 12" | G147: Mosaic | J147: GAMI40 | L147: White/Black Mix Sliced Matte Pebble | S147: 41.4 | T147: EA | U147: =+Instructions!$B$3 -> A | W147: =+Instructions!$C$22 -> 0 | X147: 41.4 | AA147: 41.4 | AB147: 0 | AC147: 41.4 | AD147: 0 | AF147: 3 | AG147: 41.4 | AJ147: 41.4 | AK147: 0 | AL147: 0 | AO147: X
B148: Decos | E148: 4" x 12" | G148: Border | J148: GAMI41/30 | L148: White/Black Mix Sliced Matte Pebble | S148: 21.25 | T148: EA | U148: =+Instructions!$B$3 -> A | W148: =+Instructions!$C$22 -> 0 | X148: 21.25 | AA148: 21.25 | AB148: 0 | AC148: 21.25 | AD148: 0 | AF148: 3 | AG148: 21.25 | AJ148: 21.25 | AK148: 0 | AL148: 0 | AO148: X
B149: Decos | E149: 12" x 12" | G149: Mosaic | J149: GAMI42R | L149: White/Black Mix Matte Pebble | R149: d | S149: 35.35 | T149: EA | U149: =+Instructions!$B$3 -> A | W149: =+Instructions!$C$22 -> 0 | X149: 35.35 | AA149: 35.35 | AB149: 0 | AC149: 35.35 | AD149: 0 | AF149: 3 | AG149: 35.35 | AJ149: 35.35 | AK149: 0 | AL149: 0 | AO149: X
B150: Decos | E150: 4" x 12" | G150: Border | J150: GAMI43R/30 | L150: White/Black Mix Matte Pebble | R150: d | S150: 21.25 | T150: EA | U150: =+Instructions!$B$3 -> A | W150: =+Instructions!$C$22 -> 0 | X150: =ROUND($AA150*(1-W150)+0.004999,2) -> 21.25 | AA150: 21.25 | AB150: 0 | AC150: 21.25 | AD150: =(AG150-AC150)/AG150 -> 0 | AF150: 3 | AG150: 21.25 | AJ150: 21.25 | AK150: =IF(VLOOKUP(AF150,Group,5,FALSE)="YES",VLOOKUP(ROUND(ROUND(AJ150,1)-AJ150,2),Round,2,FALSE)+VLOOKUP(AF150,Group,6,FALSE),0) -> 0 | AL150: =IF(VLOOKUP(AF150,Group,7,FALSE)="",0,ROUND(AJ150-0.04999,1)-AJ150+AM150) -> 0 | AO150: X
B151: Decos | E151: 12" x 12" | G151: Mosaic | J151: GAMI56R | L151: White/Pink/Beige Mix Matte Pebble | R151: d | S151: =IF(Suggested="Yes",AA151,AG151) -> 37.35 | T151: EA | U151: =+Instructions!$B$3 -> A | W151: =+Instructions!$C$22 -> 0 | X151: =ROUND($AA151*(1-W151)+0.004999,2) -> 37.35 | AA151: 37.35 | AB151: =+W151 -> 0 | AC151: =+X151 -> 37.35 | AD151: =(AG151-AC151)/AG151 -> 0 | AF151: 3 | AG151: =SUM(AJ151:AL151)+AE151 -> 37.35 | AJ151: =ROUND(AC151/(1-VLOOKUP(AF151,Group,2,FALSE)),2) -> 37.35 | AK151: =IF(VLOOKUP(AF151,Group,5,FALSE)="YES",VLOOKUP(ROUND(ROUND(AJ151,1)-AJ151,2),Round,2,FALSE)+VLOOKUP(AF151,Group,6,FALSE),0) -> 0 | AL151: =IF(VLOOKUP(AF151,Group,7,FALSE)="",0,ROUND(AJ151-0.04999,1)-AJ151+AM151) -> 0 | AM151: =IF(VLOOKUP(AF151,Group,7,FALSE)="","",VLOOKUP(AF151,Group,7,FALSE)) ->  | AO151: X
B152: Decos | E152: 4" x 12" | G152: Border | J152: GAMI57R/30 | L152: White/Pink/Beige Mix Matte Pebble | R152: d | S152: 23.35 | T152: EA | U152: =+Instructions!$B$3 -> A | W152: =+Instructions!$C$22 -> 0 | X152: 23.35 | AA152: 23.35 | AB152: 0 | AC152: 23.35 | AD152: 0 | AF152: 3 | AG152: 23.35 | AJ152: 23.35 | AK152: 0 | AL152: 0 | AO152: X
B153: Decos | E153: 12" x 12" | G153: Mosaic | J153: GAMI58R | L153: Speckled/Green/White Mix Matte Pebble | R153: d | S153: 37.35 | T153: EA | U153: =+Instructions!$B$3 -> A | W153: =+Instructions!$C$22 -> 0 | X153: 37.35 | AA153: 37.35 | AB153: 0 | AC153: 37.35 | AD153: 0 | AF153: 3 | AG153: 37.35 | AJ153: 37.35 | AK153: 0 | AL153: 0 | AO153: X
B154: Decos | E154: 4" x 12" | G154: Border | J154: GAMI59R/30 | L154: Speckled/Green/White Mix Matte Pebble | R154: d | S154: 21.25 | T154: EA | U154: =+Instructions!$B$3 -> A | W154: =+Instructions!$C$22 -> 0 | X154: 21.25 | AA154: 21.25 | AB154: 0 | AC154: 21.25 | AD154: 0 | AF154: 3 | AG154: 21.25 | AJ154: 21.25 | AK154: 0 | AL154: 0 | AO154: X
B155: Decos | E155: 12" x 12" | G155: Mosaic | J155: GAMI62R | L155: White/Black/Beige Mix Matte Pebble | R155: d | S155: 37.35 | T155: EA | U155: =+Instructions!$B$3 -> A | W155: =+Instructions!$C$22 -> 0 | X155: 37.35 | AA155: 37.35 | AB155: 0 | AC155: 37.35 | AD155: 0 | AF155: 3 | AG155: 37.35 | AJ155: 37.35 | AK155: 0 | AL155: 0 | AO155: X
B156: Decos | E156: 4" x 12" | G156: Border | J156: GAMI63R/30 | L156: White/Black/Beige Mix Matte Pebble | R156: d | S156: 21.7 | T156: EA | U156: =+Instructions!$B$3 -> A | W156: =+Instructions!$C$22 -> 0 | X156: 21.7 | AA156: 21.7 | AB156: 0 | AC156: 21.7 | AD156: 0 | AF156: 3 | AG156: 21.7 | AJ156: 21.7 | AK156: 0 | AL156: 0 | AO156: X
AO157: X
C158: continued on next page | AO158: X
C159: DÉCOR & STYLE - continued | R159: Item # Lookup: | S159: BO
AO160: X
B161: Decos | E161: 12" x 12" | G161: Mosaic | J161: GAMI74 | L161: White/Beige Mix XL Sliced Matte Pebble | S161: 41.6 | T161: EA | U161: =+Instructions!$B$3 -> A | W161: =+Instructions!$C$22 -> 0 | X161: 41.6 | AA161: 41.6 | AB161: 0 | AC161: 41.6 | AD161: 0 | AF161: 3 | AG161: 41.6 | AJ161: 41.6 | AK161: 0 | AL161: 0 | AO161: X
B162: Decos | E162: 4" x 12" | G162: Border | J162: GAMI75/30 | L162: White/Beige Mix XL Sliced Matte Pebble | S162: 21.25 | T162: EA | U162: =+Instructions!$B$3 -> A | W162: =+Instructions!$C$22 -> 0 | X162: 21.25 | AA162: 21.25 | AB162: 0 | AC162: 21.25 | AD162: 0 | AF162: 3 | AG162: 21.25 | AJ162: 21.25 | AK162: 0 | AL162: 0 | AO162: X
B163: Decos | E163: 12" x 12" | G163: Mosaic | J163: GAMI76 | L163: Grey/Green/White Mix XL Sliced Matte Pebble | S163: =IF(Suggested="Yes",AA163,AG163) -> 45.55 | T163: EA | U163: =+Instructions!$B$3 -> A | W163: =+Instructions!$C$22 -> 0 | X163: =ROUND($AA163*(1-W163)+0.004999,2) -> 45.55 | AA163: 45.55 | AB163: =+W163 -> 0 | AC163: =+X163 -> 45.55 | AD163: =(AG163-AC163)/AG163 -> 0 | AF163: 3 | AG163: =SUM(AJ163:AL163)+AE163 -> 45.55 | AJ163: =ROUND(AC163/(1-VLOOKUP(AF163,Group,2,FALSE)),2) -> 45.55 | AK163: =IF(VLOOKUP(AF163,Group,5,FALSE)="YES",VLOOKUP(ROUND(ROUND(AJ163,1)-AJ163,2),Round,2,FALSE)+VLOOKUP(AF163,Group,6,FALSE),0) -> 0 | AL163: =IF(VLOOKUP(AF163,Group,7,FALSE)="",0,ROUND(AJ163-0.04999,1)-AJ163+AM163) -> 0 | AM163: =IF(VLOOKUP(AF163,Group,7,FALSE)="","",VLOOKUP(AF163,Group,7,FALSE)) ->  | AO163: X
B164: Decos | E164: 12" x 12" | G164: Mosaic | J164: GAMI80 | L164: Color Mix XL Sliced Matte Pebble | S164: 41 | T164: EA | U164: =+Instructions!$B$3 -> A | W164: =+Instructions!$C$22 -> 0 | X164: 41 | AA164: 41 | AB164: 0 | AC164: 41 | AD164: 0 | AF164: 3 | AG164: 41 | AJ164: 41 | AK164: 0 | AL164: 0 | AO164: X
B165: Decos | E165: 4" x 12" | G165: Border | J165: GAMI81/30 | L165: Color Mix XL Sliced Matte Pebble | S165: 21.25 | T165: EA | U165: =+Instructions!$B$3 -> A | W165: =+Instructions!$C$22 -> 0 | X165: 21.25 | AA165: 21.25 | AB165: 0 | AC165: 21.25 | AD165: 0 | AF165: 3 | AG165: 21.25 | AJ165: 21.25 | AK165: 0 | AL165: 0 | AO165: X
B166: Decos | E166: 12" x 12" | G166: Mosaic | J166: GAMI82R | L166: White/Grey/Beige/Black Mix Matte Pebble | R166: d | S166: 35.35 | T166: EA | U166: =+Instructions!$B$3 -> A | W166: =+Instructions!$C$22 -> 0 | X166: 35.35 | AA166: 35.35 | AB166: 0 | AC166: 35.35 | AD166: 0 | AF166: 3 | AG166: 35.35 | AJ166: 35.35 | AK166: 0 | AL166: 0 | AO166: X
B167: Decos | E167: 12" x 12" | G167: Mosaic | J167: GAMI83 | L167: White/Pink/Beige/Black Sliced Matte Pebble | S167: 41.6 | T167: EA | U167: =+Instructions!$B$3 -> A | W167: =+Instructions!$C$22 -> 0 | X167: 41.6 | AA167: 41.6 | AB167: 0 | AC167: 41.6 | AD167: 0 | AF167: 3 | AG167: 41.6 | AJ167: 41.6 | AK167: 0 | AL167: 0 | AO167: X
B168: Decos | E168: 4" x 12" | G168: Border | J168: GAMI84R/30 | L168: White/Grey/Beige/Black Mix Matte Pebble | R168: d | S168: 21.25 | T168: EA | U168: =+Instructions!$B$3 -> A | W168: =+Instructions!$C$22 -> 0 | X168: 21.25 | AA168: 21.25 | AB168: 0 | AC168: 21.25 | AD168: 0 | AF168: 3 | AG168: 21.25 | AJ168: 21.25 | AK168: 0 | AL168: 0 | AO168: X
B169: Decos | E169: 4" x 12" | G169: Border | J169: GAMI85/30 | L169: White/Pink/Beige/Black Sliced Matte Pebble | S169: 25.75 | T169: EA | U169: =+Instructions!$B$3 -> A | W169: =+Instructions!$C$22 -> 0 | X169: 25.75 | AA169: 25.75 | AB169: 0 | AC169: 25.75 | AD169: 0 | AF169: 3 | AG169: 25.75 | AJ169: 25.75 | AK169: 0 | AL169: 0 | AO169: X
B170: Decos | E170: 12" x 12" | G170: Mosaic | J170: GAMI86 | L170: Mix Sliced Polished Pebble | Q170: Stock | S170: 43.05 | T170: EA | U170: =+Instructions!$B$3 -> A | W170: =+Instructions!$C$22 -> 0 | X170: 43.05 | AA170: 43.05 | AB170: 0 | AC170: 43.05 | AD170: 0 | AF170: 3 | AG170: 43.05 | AJ170: 43.05 | AK170: 0 | AL170: 0 | AO170: X
B171: Decos | E171: 4" x 12" | G171: Border | J171: GAMI87/30 | L171: Mix Sliced Polished Pebble | S171: 32.85 | T171: EA | U171: =+Instructions!$B$3 -> A | W171: =+Instructions!$C$22 -> 0 | X171: 32.85 | AA171: 32.85 | AB171: 0 | AC171: 32.85 | AD171: 0 | AF171: 3 | AG171: 32.85 | AJ171: 32.85 | AK171: 0 | AL171: 0 | AO171: X
B172: Decos | E172: 6" x 12" | G172: Mosaic | J172: GAMI92 | L172: Golden Mix Stacked Sliced Pebble | S172: 26.2 | T172: EA | U172: =+Instructions!$B$3 -> A | W172: =+Instructions!$C$22 -> 0 | X172: 26.2 | AA172: 26.2 | AB172: 0 | AC172: 26.2 | AD172: 0 | AF172: 3 | AG172: 26.2 | AJ172: 26.2 | AK172: 0 | AL172: 0 | AO172: X
B173: Decos | E173: 12" x 12" | G173: Mosaic | J173: GAMI97 | L173: Grey Blue Mix Shiny Engineered Stone Pebble | R173: j | S173: =IF(Suggested="Yes",AA173,AG173) -> 102.35 | T173: EA | U173: =+Instructions!$B$3 -> A | W173: =+Instructions!$C$22 -> 0 | X173: =ROUND($AA173*(1-W173)+0.004999,2) -> 102.35 | AA173: 102.35 | AB173: 0 | AC173: 102.35 | AD173: =(AG173-AC173)/AG173 -> 0 | AF173: 3 | AG173: =SUM(AJ173:AL173)+AE173 -> 102.35 | AJ173: =ROUND(AC173/(1-VLOOKUP(AF173,Group,2,FALSE)),2) -> 102.35 | AK173: =IF(VLOOKUP(AF173,Group,5,FALSE)="YES",VLOOKUP(ROUND(ROUND(AJ173,1)-AJ173,2),Round,2,FALSE)+VLOOKUP(AF173,Group,6,FALSE),0) -> 0 | AL173: =IF(VLOOKUP(AF173,Group,7,FALSE)="",0,ROUND(AJ173-0.04999,1)-AJ173+AM173) -> 0 | AM173: =IF(VLOOKUP(AF173,Group,7,FALSE)="","",VLOOKUP(AF173,Group,7,FALSE)) ->  | AO173: X
B174: Decos | E174: 12" x 12" | G174: Mosaic | J174: GAMI98 | L174: Grey Blue Mix Matte Engineered Stone Pebble | R174: j | S174: =IF(Suggested="Yes",AA174,AG174) -> 96.9 | T174: EA | U174: =+Instructions!$B$3 -> A | W174: =+Instructions!$C$22 -> 0 | X174: =ROUND($AA174*(1-W174)+0.004999,2) -> 96.9 | AA174: 96.9 | AB174: 0 | AC174: 96.9 | AD174: =(AG174-AC174)/AG174 -> 0 | AF174: 3 | AG174: =SUM(AJ174:AL174)+AE174 -> 96.9 | AJ174: =ROUND(AC174/(1-VLOOKUP(AF174,Group,2,FALSE)),2) -> 96.9 | AK174: =IF(VLOOKUP(AF174,Group,5,FALSE)="YES",VLOOKUP(ROUND(ROUND(AJ174,1)-AJ174,2),Round,2,FALSE)+VLOOKUP(AF174,Group,6,FALSE),0) -> 0 | AL174: =IF(VLOOKUP(AF174,Group,7,FALSE)="",0,ROUND(AJ174-0.04999,1)-AJ174+AM174) -> 0 | AM174: =IF(VLOOKUP(AF174,Group,7,FALSE)="","",VLOOKUP(AF174,Group,7,FALSE)) ->  | AO174: X
B175: Decos | E175: 12.2" x 12.2" | G175: Mosaic | J175: GAMI100 | L175: Multicolor Sliced Pebble | S175: =IF(Suggested="Yes",AA175,AG175) -> 72.2 | T175: EA | U175: =+Instructions!$B$3 -> A | W175: =+Instructions!$C$22 -> 0 | X175: =ROUND($AA175*(1-W175)+0.004999,2) -> 72.2 | Z175: new | AA175: 72.2 | AB175: =+W175 -> 0 | AC175: =+X175 -> 72.2 | AD175: =(AG175-AC175)/AG175 -> 0 | AF175: 3 | AG175: =SUM(AJ175:AL175)+AE175 -> 72.2 | AJ175: =ROUND(AC175/(1-VLOOKUP(AF175,Group,2,FALSE)),2) -> 72.2 | AK175: =IF(VLOOKUP(AF175,Group,5,FALSE)="YES",VLOOKUP(ROUND(ROUND(AJ175,1)-AJ175,2),Round,2,FALSE)+VLOOKUP(AF175,Group,6,FALSE),0) -> 0 | AL175: =IF(VLOOKUP(AF175,Group,7,FALSE)="",0,ROUND(AJ175-0.04999,1)-AJ175+AM175) -> 0 | AM175: =IF(VLOOKUP(AF175,Group,7,FALSE)="","",VLOOKUP(AF175,Group,7,FALSE)) ->  | AO175: X
B176: Decos | E176: 12" x 12" | G176: Mosaic | J176: GAMI101 | L176: Multicolor Sliced Pebble Mix | S176: =IF(Suggested="Yes",AA176,AG176) -> 39.65 | T176: EA | U176: =+Instructions!$B$3 -> A | W176: =+Instructions!$C$22 -> 0 | X176: =ROUND($AA176*(1-W176)+0.004999,2) -> 39.65 | Z176: new | AA176: 39.65 | AB176: 0 | AC176: 39.65 | AD176: =(AG176-AC176)/AG176 -> 0 | AF176: 3 | AG176: =SUM(AJ176:AL176)+AE176 -> 39.65 | AJ176: =ROUND(AC176/(1-VLOOKUP(AF176,Group,2,FALSE)),2) -> 39.65 | AK176: =IF(VLOOKUP(AF176,Group,5,FALSE)="YES",VLOOKUP(ROUND(ROUND(AJ176,1)-AJ176,2),Round,2,FALSE)+VLOOKUP(AF176,Group,6,FALSE),0) -> 0 | AL176: =IF(VLOOKUP(AF176,Group,7,FALSE)="",0,ROUND(AJ176-0.04999,1)-AJ176+AM176) -> 0 | AM176: =IF(VLOOKUP(AF176,Group,7,FALSE)="","",VLOOKUP(AF176,Group,7,FALSE)) ->  | AO176: X
B177: Decos | E177: 12" x 12" | G177: Mosaic | J177: GANO01R | L177: Black Matte Pebble | R177: d | S177: 40.4 | T177: EA | U177: =+Instructions!$B$3 -> A | W177: =+Instructions!$C$22 -> 0 | X177: 40.4 | AA177: 40.4 | AB177: 0 | AC177: 40.4 | AD177: 0 | AF177: 3 | AG177: 40.4 | AJ177: 40.4 | AK177: 0 | AL177: 0 | AO177: X
B178: Decos | E178: 4" x 12" | G178: Border | J178: GANO02R/30 | L178: Black Matte Pebble | R178: d | S178: 23.35 | T178: EA | U178: =+Instructions!$B$3 -> A | W178: =+Instructions!$C$22 -> 0 | X178: 23.35 | AA178: 23.35 | AB178: 0 | AC178: 23.35 | AD178: 0 | AF178: 3 | AG178: 23.35 | AJ178: 23.35 | AK178: 0 | AL178: 0 | AO178: X
B179: Decos | E179: 12" x 12" | G179: Mosaic | J179: GANO03 | L179: Black Polished Pebble | S179: 34.4 | T179: EA | U179: =+Instructions!$B$3 -> A | W179: =+Instructions!$C$22 -> 0 | X179: 34.4 | AA179: 34.4 | AB179: 0 | AC179: 34.4 | AD179: 0 | AF179: 3 | AG179: 34.4 | AJ179: 34.4 | AK179: 0 | AL179: 0 | AO179: X
B180: Decos | E180: 4" x 12" | G180: Border | J180: GANO04/30 | L180: Black Polished Pebble | S180: 20.75 | T180: EA | U180: =+Instructions!$B$3 -> A | W180: =+Instructions!$C$22 -> 0 | X180: 20.75 | AA180: 20.75 | AB180: 0 | AC180: 20.75 | AD180: 0 | AF180: 3 | AG180: 20.75 | AJ180: 20.75 | AK180: 0 | AL180: 0 | AO180: X
B181: Decos | E181: 12" x 12" | G181: Mosaic | J181: GANO15 | L181: Black Sliced Matte Pebble | S181: 41.15 | T181: EA | U181: =+Instructions!$B$3 -> A | W181: =+Instructions!$C$22 -> 0 | X181: 41.15 | AA181: 41.15 | AB181: 0 | AC181: 41.15 | AD181: 0 | AF181: 3 | AG181: 41.15 | AJ181: 41.15 | AK181: 0 | AL181: 0 | AO181: X
B182: Decos | E182: 4" x 12" | G182: Border | J182: GANO16/30 | L182: Black Sliced Matte Pebble | S182: 23.35 | T182: EA | U182: =+Instructions!$B$3 -> A | W182: =+Instructions!$C$22 -> 0 | X182: 23.35 | AA182: 23.35 | AB182: 0 | AC182: 23.35 | AD182: 0 | AF182: 3 | AG182: 23.35 | AJ182: 23.35 | AK182: 0 | AL182: 0 | AO182: X
B183: Decos | E183: 6" x 12" | G183: Mosaic | J183: GANO18 | L183: Black Stacked Pebble | R183: e | S183: 36.55 | T183: EA | U183: =+Instructions!$B$3 -> A | W183: =+Instructions!$C$22 -> 0 | X183: 36.55 | AA183: 36.55 | AB183: 0 | AC183: 36.55 | AD183: 0 | AF183: 3 | AG183: 36.55 | AJ183: 36.55 | AK183: 0 | AL183: 0 | AO183: X
B184: Decos | E184: 12" x 12" | G184: Mosaic | J184: GANO19 | L184: Black Sliced Polished Pebble | S184: 57.35 | T184: EA | U184: =+Instructions!$B$3 -> A | W184: =+Instructions!$C$22 -> 0 | X184: 57.35 | AA184: 57.35 | AB184: 0 | AC184: 57.35 | AD184: 0 | AF184: 3 | AG184: 57.35 | AJ184: 57.35 | AK184: 0 | AL184: 0 | AO184: X
B185: Decos | E185: 4" x 12" | G185: Border | J185: GANO20/30 | L185: Black Sliced Polished Pebble | S185: 32.85 | T185: EA | U185: =+Instructions!$B$3 -> A | W185: =+Instructions!$C$22 -> 0 | X185: 32.85 | AA185: 32.85 | AB185: 0 | AC185: 32.85 | AD185: 0 | AF185: 3 | AG185: 32.85 | AJ185: 32.85 | AK185: 0 | AL185: 0 | AO185: X
B186: Decos | E186: 6" x 12" | G186: Mosaic | J186: GANO21 | L186: Black Stacked Sliced Pebble | S186: =IF(Suggested="Yes",AA186,AG186) -> 27.25 | T186: EA | U186: =+Instructions!$B$3 -> A | W186: =+Instructions!$C$22 -> 0 | X186: =ROUND($AA186*(1-W186)+0.004999,2) -> 27.25 | AA186: 27.25 | AB186: =+W186 -> 0 | AC186: =+X186 -> 27.25 | AD186: =(AG186-AC186)/AG186 -> 0 | AF186: 3 | AG186: =SUM(AJ186:AL186)+AE186 -> 27.25 | AJ186: =ROUND(AC186/(1-VLOOKUP(AF186,Group,2,FALSE)),2) -> 27.25 | AK186: =IF(VLOOKUP(AF186,Group,5,FALSE)="YES",VLOOKUP(ROUND(ROUND(AJ186,1)-AJ186,2),Round,2,FALSE)+VLOOKUP(AF186,Group,6,FALSE),0) -> 0 | AL186: =IF(VLOOKUP(AF186,Group,7,FALSE)="",0,ROUND(AJ186-0.04999,1)-AJ186+AM186) -> 0 | AM186: =IF(VLOOKUP(AF186,Group,7,FALSE)="","",VLOOKUP(AF186,Group,7,FALSE)) ->  | AO186: X
B187: Decos | E187: 12" x 12" | G187: Mosaic | J187: GANO23 | L187: Black XL Sliced Pebble | S187: =IF(Suggested="Yes",AA187,AG187) -> 52.55 | T187: EA | U187: =+Instructions!$B$3 -> A | W187: =+Instructions!$C$22 -> 0 | X187: =ROUND($AA187*(1-W187)+0.004999,2) -> 52.55 | AA187: 52.55 | AB187: =+W187 -> 0 | AC187: =+X187 -> 52.55 | AD187: =(AG187-AC187)/AG187 -> 0 | AF187: 3 | AG187: =SUM(AJ187:AL187)+AE187 -> 52.55 | AJ187: =ROUND(AC187/(1-VLOOKUP(AF187,Group,2,FALSE)),2) -> 52.55 | AK187: =IF(VLOOKUP(AF187,Group,5,FALSE)="YES",VLOOKUP(ROUND(ROUND(AJ187,1)-AJ187,2),Round,2,FALSE)+VLOOKUP(AF187,Group,6,FALSE),0) -> 0 | AL187: =IF(VLOOKUP(AF187,Group,7,FALSE)="",0,ROUND(AJ187-0.04999,1)-AJ187+AM187) -> 0 | AM187: =IF(VLOOKUP(AF187,Group,7,FALSE)="","",VLOOKUP(AF187,Group,7,FALSE)) ->  | AO187: X
B188: Decos | E188: 12" x 12" | G188: Mosaic | J188: GASC01 | L188: Dark Sliced Matte Pebble | S188: 57.85 | T188: EA | U188: =+Instructions!$B$3 -> A | W188: =+Instructions!$C$22 -> 0 | X188: 57.85 | AA188: 57.85 | AB188: 0 | AC188: 57.85 | AD188: 0 | AF188: 3 | AG188: 57.85 | AJ188: 57.85 | AK188: 0 | AL188: 0 | AO188: X
B189: Decos | E189: 4" x 12" | G189: Border | J189: GASC02/30 | L189: Dark Sliced Matte Pebble | S189: 31.55 | T189: EA | U189: =+Instructions!$B$3 -> A | W189: =+Instructions!$C$22 -> 0 | X189: 31.55 | AA189: 31.55 | AB189: 0 | AC189: 31.55 | AD189: 0 | AF189: 3 | AG189: 31.55 | AJ189: 31.55 | AK189: 0 | AL189: 0 | AO189: X
B190: Decos | E190: 12" x 12" | G190: Mosaic | J190: GATU01 | L190: Turquoise Mix Reconstituted Pebble | R190: f | S190: 61.9 | T190: EA | U190: =+Instructions!$B$3 -> A | W190: =+Instructions!$C$22 -> 0 | X190: 61.9 | AA190: 61.9 | AB190: 0 | AC190: 61.9 | AD190: 0 | AF190: 3 | AG190: 61.9 | AJ190: 61.9 | AK190: 0 | AL190: 0 | AO190: X
B191: Decos | E191: 4" x 12" | G191: Border | J191: GATU02/30 | L191: Turquoise Mix Reconstituted Pebble | R191: f | S191: =IF(Suggested="Yes",AA191,AG191) -> 25.55 | T191: EA | U191: =+Instructions!$B$3 -> A | W191: =+Instructions!$C$22 -> 0 | X191: =ROUND($AA191*(1-W191)+0.004999,2) -> 25.55 | AA191: 25.55 | AB191: =+W191 -> 0 | AC191: =+X191 -> 25.55 | AD191: =(AG191-AC191)/AG191 -> 0 | AF191: 3 | AG191: =SUM(AJ191:AL191)+AE191 -> 25.55 | AJ191: =ROUND(AC191/(1-VLOOKUP(AF191,Group,2,FALSE)),2) -> 25.55 | AK191: =IF(VLOOKUP(AF191,Group,5,FALSE)="YES",VLOOKUP(ROUND(ROUND(AJ191,1)-AJ191,2),Round,2,FALSE)+VLOOKUP(AF191,Group,6,FALSE),0) -> 0 | AL191: =IF(VLOOKUP(AF191,Group,7,FALSE)="",0,ROUND(AJ191-0.04999,1)-AJ191+AM191) -> 0 | AM191: =IF(VLOOKUP(AF191,Group,7,FALSE)="","",VLOOKUP(AF191,Group,7,FALSE)) ->  | AO191: X
B192: Decos | E192: 12" x 12" | G192: Mosaic | J192: GAVE03 | L192: Cristal Green Matte Opus | R192: g | S192: 65.15 | T192: EA | U192: =+Instructions!$B$3 -> A | W192: =+Instructions!$C$22 -> 0 | X192: 65.15 | AA192: 65.15 | AB192: 0 | AC192: 65.15 | AD192: 0 | AF192: 3 | AG192: 65.15 | AJ192: 65.15 | AK192: 0 | AL192: 0 | AO192: X
B193: Decos | E193: 4" x 12" | G193: Border | J193: GAVE04/30 | L193: Cristal Green Matte Opus | R193: g | S193: 26.35 | T193: EA | U193: =+Instructions!$B$3 -> A | W193: =+Instructions!$C$22 -> 0 | X193: 26.35 | AA193: 26.35 | AB193: 0 | AC193: 26.35 | AD193: 0 | AF193: 3 | AG193: 26.35 | AJ193: 26.35 | AK193: 0 | AL193: 0 | AO193: X
B194: Decos | E194: 11.8" x 11.8" | G194: Mosaic | J194: GAVE11 | L194: Crystal Green Semi-Precious Stone | S194: 98.3 | T194: EA | U194: =+Instructions!$B$3 -> A | W194: =+Instructions!$C$22 -> 0 | X194: 98.3 | AA194: 98.3 | AB194: 0 | AC194: 98.3 | AD194: 0 | AF194: 3 | AG194: 98.3 | AJ194: 98.3 | AK194: 0 | AL194: 0 | AO194: X
B195: Decos | E195: 12" x 12" | G195: Mosaic | J195: MABE131 | L195: Mini Opus Matte Beige Brown Marble Stone | S195: 57.1 | T195: EA | U195: =+Instructions!$B$3 -> A | W195: =+Instructions!$C$22 -> 0 | X195: 57.1 | AA195: 57.1 | AB195: 0 | AC195: =+X195 -> 57.1 | AD195: 0 | AF195: 3 | AG195: 57.1 | AJ195: 57.1 | AK195: 0 | AL195: 0 | AO195: X
B196: Decos | E196: 11.9" x 11.9" | G196: Mosaic | J196: MABE132 | L196: 6" x 6" Green Palm Leaf Printed Beige Marble | S196: =IF(Suggested="Yes",AA196,AG196) -> 89.45 | T196: EA | U196: =+Instructions!$B$3 -> A | W196: =+Instructions!$C$22 -> 0 | X196: =ROUND($AA196*(1-W196)+0.004999,2) -> 89.45 | AA196: 89.45 | AB196: =+W196 -> 0 | AC196: 89.45 | AD196: =(AG196-AC196)/AG196 -> 0 | AF196: 3 | AG196: =SUM(AJ196:AL196)+AE196 -> 89.45 | AJ196: =ROUND(AC196/(1-VLOOKUP(AF196,Group,2,FALSE)),2) -> 89.45 | AK196: =IF(VLOOKUP(AF196,Group,5,FALSE)="YES",VLOOKUP(ROUND(ROUND(AJ196,1)-AJ196,2),Round,2,FALSE)+VLOOKUP(AF196,Group,6,FALSE),0) -> 0 | AL196: =IF(VLOOKUP(AF196,Group,7,FALSE)="",0,ROUND(AJ196-0.04999,1)-AJ196+AM196) -> 0 | AM196: =IF(VLOOKUP(AF196,Group,7,FALSE)="","",VLOOKUP(AF196,Group,7,FALSE)) ->  | AO196: X
B197: Decos | E197: 12" x 12" | G197: Mosaic | J197: MABE133 | L197: 3" x 3" Cross & Star Beige Marble | S197: 75.5 | T197: EA | U197: =+Instructions!$B$3 -> A | W197: =+Instructions!$C$22 -> 0 | X197: 75.5 | AA197: 75.5 | AB197: 0 | AC197: =+X197 -> 75.5 | AD197: 0 | AF197: 3 | AG197: 75.5 | AJ197: 75.5 | AK197: 0 | AL197: 0 | AO197: X
B198: Decos | E198: 12" x 12" | G198: Mosaic | J198: MABE134 | L198: Beige Marble 1" x 6" Baguette | S198: 64.8 | T198: EA | U198: =+Instructions!$B$3 -> A | W198: =+Instructions!$C$22 -> 0 | X198: 64.8 | Z198: new | AA198: 64.8 | AB198: 0 | AC198: 64.8 | AD198: 0 | AF198: 3 | AG198: 64.8 | AJ198: 64.8 | AK198: 0 | AL198: 0 | AO198: X
B199: Decos | E199: 11.6" x 12" | G199: Mosaic | J199: MABG01 | L199: White/Beige Mix Cubic Opus | S199: 39.75 | T199: EA | U199: =+Instructions!$B$3 -> A | W199: =+Instructions!$C$22 -> 0 | X199: 39.75 | AA199: 39.75 | AB199: 0 | AC199: 39.75 | AD199: 0 | AF199: 3 | AG199: 39.75 | AJ199: 39.75 | AK199: 0 | AL199: 0 | AO199: X
B200: Decos | E200: 12" x 12" | G200: Mosaic | J200: MABL01 | L200: Onyx White Matte Opus | S200: =IF(Suggested="Yes",AA200,AG200) -> 35.5 | T200: EA | U200: =+Instructions!$B$3 -> A | W200: =+Instructions!$C$22 -> 0 | X200: =ROUND($AA200*(1-W200)+0.004999,2) -> 35.5 | AA200: 35.5 | AB200: =+W200 -> 0 | AC200: 35.5 | AD200: =(AG200-AC200)/AG200 -> 0 | AF200: 3 | AG200: =SUM(AJ200:AL200)+AE200 -> 35.5 | AJ200: =ROUND(AC200/(1-VLOOKUP(AF200,Group,2,FALSE)),2) -> 35.5 | AK200: =IF(VLOOKUP(AF200,Group,5,FALSE)="YES",VLOOKUP(ROUND(ROUND(AJ200,1)-AJ200,2),Round,2,FALSE)+VLOOKUP(AF200,Group,6,FALSE),0) -> 0 | AL200: =IF(VLOOKUP(AF200,Group,7,FALSE)="",0,ROUND(AJ200-0.04999,1)-AJ200+AM200) -> 0 | AM200: =IF(VLOOKUP(AF200,Group,7,FALSE)="","",VLOOKUP(AF200,Group,7,FALSE)) ->  | AO200: X
... 376 more rows

Sheet Websites
A1: Easy Access Website links
A3: ConestogaTile's Website | B3: http://www.conestogatile.com/
A5: Manufacturer's Home Page | B5: https://www.batiorientusa.com/en/home
A8: Product | B8: Direct Website Link

Sheet Changes
A1: Date Announced | B1: Series
A3: New Products
A5: 2013-04-01 | B5: Decorative Mosaics
A6: 2013-04-01 | B6: Marble
A7: 2013-04-01 | B7: Pebbles
A8: 2013-04-01 | B8: Quartzite / Slate
A9: 2013-05-28 | B9: Decorative Mosaics
A10: 2013-05-28 | B10: Marble
A11: 2013-05-28 | B11: Marble
A12: 2013-05-28 | B12: Pebbles
A13: 2013-05-28 | B13: Quartzite / Slate
A14: 2013-05-28 | B14: Quartzite / Slate
A15: 2014-08-12 | B15: ARRO16 - Slate / Beige & Brown Glass 12" x 11.6" Mosaic
A16: " | B16: ARRO17 - Slate / Beige & Brown Glass 12" x 12" Mosaic
A17: " | B17: MABL75/30 - White 5-1/2" x 12" Border
A18: " | B18: MACA02/30 - Cappuccino 5-1/2" x 12" Border
A19: " | B19: MACA03 - Cappuccino 11.6" x 12" Mosaic
A20: " | B20: MAGR89/30 - Grey 5-1/2" x 12" Border
A21: " | B21: MAGR92 - Dark Grey 11.6" x 12" Mosaic
A22: " | B22: MAMI92 - Marble / Beige & Brown Glass 12" x 12" Mosaic
A23: " | B23: MAMI93 - Marble / Beige & Brown Glass 12" x 12" Mosaic
A24: " | B24: MAMI94 - Marble / Black, Grey & White Glass 12" x 12" Mosaic
A25: " | B25: MAMI95 - Marble / Black, Grey & White Glass 12" x 12" Mosaic
A26: " | B26: MAMI96/30 - White / Grey / Dark Grey 5-1/2" x 12" Border
A27: " | B27: MAMI101 - Black 12" x 12" Mosaic
A28: " | B28: MAMI102 - Black 4" x 12" Border
A29: " | B29: MAMI103 - Beige 12" x 12" Mosaic
A30: " | B30: MAMI104 - Beige 4" x 12" Border
A31: " | B31: MAMI119 - Beige / Shell Brown 11.6" x 12" Mosaic
A32: " | B32: MAMI120 - Beige / White / Shell Beige 11.6" x 12" Mosaic
A33: " | B33: MAMI123 - Cappuccino / Onyx Cream 11.6" x 12" Mosaic
A34: " | B34: PIMI19 - White / Grey / Silver 4" x 12" Border
A35: " | B35: PIMI21 - Taupe / Gold 4" x 12" Border
A36: " | B36: PIMI23 - White / Grey / Red 4" x 12" Border
A37: " | B37: PIMI24 - Zebra 2" x 2" White / Black Décor 12" x 12" Mosaic
A38: " | B38: QUMI17 - Grey / Beige Glass / Quartzite / Metal 12" x 12" Mosaic
A39: " | B39: VEMI65 - Blue / Light Blue / White 3" x 7.9" Border
A40: " | B40: VEMI66 - Black / Grey / White 3" x 7.9" Border
A41: " | B41: VEMI68 - Green / Orange / Red 3" x 7.9" Border
A42: " | B42: VEMI100 - Mix Grey / Glass / Inox 12" x 12" Mosaic
A43: " | B43: VEMI114 - White / Grey / Glass 12" x 12" Mosaic
A44: 2015-05-14 | B44: ARNO19 - Black Slate 4" x 4", 12" x 12" Mosaic
A45: 2015-05-14 | B45: ARNO20 - Black Slate 4" x 13.78" Wall Cladding
A46: 2015-05-14 | B46: ARNO21 - Black Slate 4" x 7.87" Wall Cladding Corner
A47: 2015-05-14 | B47: ARRO18 - Rust Slate 4" x 4", 12" x 12" Mosaic
A48: 2015-05-14 | B48: ARRO19 - Rust Slate 4" x 13.78" Wall Cladding
A49: 2015-05-14 | B49: ARRO21 - Rust Slate 4" x 7.87" Wall Cladding Corner
A50: 2015-05-14 | B50: MAMI50 - Blue Glass / Shell Mix 12" x 12" Mosaic
A51: 2015-05-14 | B51: MAMI134 - White Marble / White & Turquoise Glass Mix 12" x 12" Mosaic
A52: 2015-05-14 | B52: MEMI21 - Brushed / Silver / White Glass 12" x 12" Mosaic
A53: 2015-05-14 | B53: MEMI22 - Brushed / Black / White Glass 12" x 12" Mosaic
A54: 2015-05-14 | B54: MEMI29 - Grey Mix / Brushed Aluminum 12" x 12" Mosaic
A55: 2015-05-14 | B55: MEMI32 - Taupe Mix / Brushed Aluminum 12" x 12" Mosaic
A56: 2015-05-14 | B56: MEMI35 - Black / Mix Steel / Grey Glass 12" x 12" Mosaic
A57: 2015-05-14 | B57: MEMI36 - Silver / Mix Steel / Grey Glass 12" x 12" Mosaic
A58: 2015-05-14 | B58: PIGR16 - Quartzite Grey 12" x 12" Mosaic
A59: 2015-05-14 | B59: PIGR17 - Quartzite Grey / Silver Glass Mix 12" x 12" Mosaic
A60: 2015-05-14 | B60: QUMA03 - Quartzite Brown 12" x 12" Mosaic
A61: 2015-05-14 | B61: QUMI18 - Quartzite Mix Beige / Glass Mix 12.2" x 12.4" Mosaic
A62: 2015-05-14 | B62: QUMI19 - Quartzite Brown / White, Gold Glass 12" x 12" Mosaic
A63: 2015-05-14 | B63: VEBE02 - Beige Glass / Ceramic 12" x 12" Mosaic
A64: 2015-05-14 | B64: VEBL11 - White Glass Golf Mix 11.6" x 11.6" Mosaic
A65: 2015-05-14 | B65: VEBL40 - Turquoise Glass / Ceramic 12" x 12" Mosaic
A66: 2015-05-14 | B66: VEGR06 - Grey Matte & Polished Glass Mix 12" x 12" Mosaic
A67: 2015-05-14 | B67: VEGR08 - Grey Glass "Golf" Mix 11.6" x 11.6" Mosaic
A68: 2015-05-14 | B68: VEGR13 - Teal-Grey Glass Broken Edges 12.2" x 12.4" Mosaic
A69: 2015-05-14 | B69: VEGR35 - Grey Glass / Ceramic 12" x 12" Mosaic
A70: 2015-05-14 | B70: VEMA10 - Brown Matte & Polished Glass Mix 12" x 12" Mosaic
A71: 2015-05-14 | B71: VEMA11 - Brown Glass Broken Edges 12.2" x 12.4" Mosaic
A72: 2015-05-14 | B72: VEMA12 - Brown Glass "Golf" Mix 11.6" x 11.6" Mosaic
A73: 2015-05-14 | B73: VEMI98 - Blue Glass & Décor 12" x 12" Mosaic
A74: 2015-05-14 | B74: VEMI113 - Caramel Glass & Décor 12" x 12" Mosaic
A75: 2015-05-14 | B75: VEMI118 - Grey Glass / Chrome 12" x 12" Mosaic
A76: 2015-05-14 | B76: VEMI120 - White Glass / Chrome 12" x 12" Mosaic
A77: 2015-05-14 | B77: VEMI121 - Black Glass "Golf" Mix 11.6" x 11.6" Mosaic
A78: 2015-05-14 | B78: VEMI123 - Mix Grey Glass / Green Jean Print / Steel 12" x 12" Mosaic
A79: 2015-05-14 | B79: VENO03 - Black Matte & Polished Glass Mix 12" x 12" Mosaic
A80: 2015-05-14 | B80: VENO12 - Black Glass Broken Edges 12.2" x 12.4" Mosaic
A81: 2016-06-06 | B81: ARNO10 - Black 12" x 12" Mosaic
A82: 2016-06-06 | B82: BOMA01 - Natural Wood Look 13" x 14.4" Mosaic
A83: 2016-06-06 | B83: BOMA04 - Natural Wood Look 21" x 8" Mosaic
A84: 2016-06-06 | B84: BOMI01 - Washed Wood Look 13" x 14.4" Mosaic
A85: 2016-06-06 | B85: BOMI04 - Washed Wood Look 21" x 8" Mosaic
A86: 2016-06-06 | B86: GABL25 - White 6" x 12" Mosaic
A87: 2016-06-06 | B87: GAMI76 - Mix Grey / Green / White 12" x 12" Mosaic
A88: 2016-06-06 | B88: GAMI78 - Mix Beige / Pink / White 12" x 12" Mosaic
A89: 2016-06-06 | B89: GAMI92 - Golden Mix 6" x 12" Mosaic
A90: 2016-06-06 | B90: GANO21 - Black 6" x 12" Mosaic
A91: 2016-06-06 | B91: MABL03 - White 11" x 12" Mosaic
A92: 2016-06-06 | B92: MABL57 - Onyx Beige 11.6" x 11.6" Mosaic
A93: 2016-06-06 | B93: MABL93 - White Marble 11.8" x 12" Mosaic
A94: 2016-06-06 | B94: MABL95 - White Marble 12" x 12" Mosaic
A95: 2016-06-06 | B95: MABL96 - White Marble 3.2" x 12" Rope Cladding
A96: 2016-06-06 | B96: MAGR03 - Grey 11" x 12" Mosaic
A97: 2016-06-06 | B97: MAMI143 - Black Glass / Marble 12" x 12" Mosaic
A98: 2016-06-06 | B98: MAMI144 - Black / White Glass 12" x 12" Mosaic
A99: 2016-06-06 | B99: MAMI25 - Beige Marble / Brown Glass/ Décor 12" x 12" Mosaic
A100: 2016-06-06 | B100: MANO62 - Black Marble 3.2" x 12" Rope Cladding
A101: 2016-06-06 | B101: MARO41 - Red 11.6" x 11.6" Mosaic
A102: 2016-06-06 | B102: MEMI47 - Aluminum / Grey Glass 12" x 12" Mosaic
A103: 2016-06-06 | B103: MEMI49 - Aluminum / White Glass 12" x 12" Mosaic
A104: 2016-06-06 | B104: PIBE24 - Beige Sandstone 11.8" x 12" Mosaic
A105: 2016-06-06 | B105: PIBE25 - Beige Sandstone 6" x 12" Rope Cladding
A106: 2016-06-06 | B106: PIBL10 - White 12" x 12" Mosaic
A107: 2016-06-06 | B107: PIBL11 - White 4" x 12" Border
A108: 2016-06-06 | B108: PIBL12 - White 12" x 12" Mosaic
A109: 2016-06-06 | B109: PIBL13 - White 4" x 12" Border
A110: 2016-06-06 | B110: PIBL14 - White 12" x 12" Mosaic
A111: 2016-06-06 | B111: PIBL15 - White 4" x 12" Border
A112: 2016-06-06 | B112: PIGR28 - Grey 12" x 12" Mosaic
A113: 2016-06-06 | B113: PIGR29 - Grey 4" x 12" Border
A114: 2016-06-06 | B114: PIGR30 - Light Grey 12" x 12" Mosaic
A115: 2016-06-06 | B115: PIGR31 - Light Grey 4" x 12" Border
A116: 2016-06-06 | B116: PIMI25 - Black Stone / Turquoise Ceramic Mix 12" x 12" Mosaic
A117: 2016-06-06 | B117: PIMI26 - Black / White 12" x 12" Mosaic
A118: 2016-06-06 | B118: PIMI27 - Black / White 4" x 12" Mosaic
A119: 2016-06-06 | B119: PIMI28 - Black 12" x 12" Mosaic
A120: 2016-06-06 | B120: PIMI29 - Black 4" x 12" Mosaic
A121: 2016-06-06 | B121: PIMI30 - White Marble 11.8" x 12" Mosaic
A122: 2016-06-06 | B122: PIMI31 - Sandstone / Multi Beige Ceramic Mix 12" x 12" Mosaic
A123: 2016-06-06 | B123: PIMI32 - Black Stone / Grey & White Ceramic Mix 12" x 12" Mosaic
A124: 2016-06-06 | B124: PINO21 - Black Marble 11.8" x 12" Mosaic
A125: 2016-06-06 | B125: QUBE13 - Beige 12" x 12" Mosaic
A126: 2016-06-06 | B126: QUGR04 - Quartzite Grey 12" x 12" Mosaic
A127: 2016-06-06 | B127: QUMI20 - White Marble 11.8" x 12" Mosaic
A128: 2016-06-06 | B128: VEBL12 - White Matte & Glossy Mix 12" x 12" Mosaic
A129: 2016-06-06 | B129: VEBL41 - White Glass / Marble 12" x 12" Mosaic
A130: 2016-06-06 | B130: VEBL43 - White Glass 11.5" x 12" Mosaic
A131: 2016-06-06 | B131: VEGR14 - Grey Matte & Glossy Mix 12" x 12" Mosaic
A132: 2016-06-06 | B132: VEGR39 - Black / Grey / White Glass 12" x 12" Mosaic
A133: 2016-06-06 | B133: VEMA13 - Taupe Matte & Glossy Mix 12" x 12" Mosaic
A134: 2016-06-06 | B134: VENO04 - Black Matte & Glossy Mix 12" x 12" Mosaic
A135: 2016-06-06 | B135: VENO34 - Black Glass / Marble / Steel 12" x 12" Mosaic
A136: 2016-06-06 | B136: VENO36 - Black Glass 11.5" x 12" Mosaic
A137: 2016-06-06 | B137: VERO33 - Red Glass 12" x 12" Mosaic
A138: 2016-06-06 | B138: VEVE40 - Blue Green Glass 12" x 12" Mosaic
A139: 2017-01-06 | B139: Cement Tiles
A140: 2017-05-31 | B140: ARNO22 - Black Slate Baguette Squares
A141: 2017-05-31 | B141: GABL26 - White
A142: 2017-05-31 | B142: GANO22 - Black Mix
A143: 2017-05-31 | B143: GANO23 - Black
A144: 2017-05-31 | B144: MABE123 - Beige Nature Print
A145: 2017-05-31 | B145: MABG01 - White
A146: 2017-05-31 | B146: MACA04 - Cappuccino Mix
A147: 2017-05-31 | B147: MAGR103 - Grey / White Mix
A148: 2017-05-31 | B148: MAGR104 - Grey Mix
A149: 2017-05-31 | B149: MAGR105 - Grey Nature Print
A150: 2017-05-31 | B150: MAGR106 - Black / Grey / White Mix
A151: 2017-05-31 | B151: MAMI145 - White / Grey Stone Mix
A152: 2017-05-31 | B152: MAMI146 - White / Beige Stone Mix
A153: 2017-05-31 | B153: MAMI147 - White Stone / Glass Mix
A154: 2017-05-31 | B154: MAMI148 - White Stone / Grey Glass Mix
A155: 2017-05-31 | B155: MAMI149 - White / Grey / Beige Stone / Glass Mix
A156: 2017-05-31 | B156: MAMI150 - Grey / Black Stone / Aluminum Mix
A157: 2017-05-31 | B157: MAMI151 - Grey / Green / Beige Stone Mix
A158: 2017-05-31 | B158: MAMI152 - White / Grey / Black Mix
A159: 2017-05-31 | B159: MAMI153 - Grey / Black Stone / Aluminum Mix
A160: 2017-05-31 | B160: MEMI51 - Wood / Gold Aluminum
A161: 2017-05-31 | B161: MEMI52 - Wood / Silver Aluminum
A162: 2017-05-31 | B162: PIBL16 - White Paladiana
A163: 2017-05-31 | B163: PIBL17 - White Paladiana
A164: 2017-05-31 | B164: PIBL18 - White
A165: 2017-05-31 | B165: PIBL19 - White
A166: 2017-05-31 | B166: PIGR32 - Grey Paladiana
A167: 2017-05-31 | B167: PIGR33 - Grey Paladiana
A168: 2017-05-31 | B168: PIGR34 - Grey
A169: 2017-05-31 | B169: PIGR35 - Grey
A170: 2017-05-31 | B170: QUBE23 - Beige / Grey Quartzite
A171: 2017-05-31 | B171: QUBE24 - Beige / Grey Quartzite
A172: 2017-05-31 | B172: VEGR41 - Light Grey Glass Wood Look
A173: 2017-05-31 | B173: VEGR42 - Grey Mix Glass Wood Look
A174: 2017-05-31 | B174: VEGR43 - Black / Grey Mix Glass
A175: 2017-05-31 | B175: VEMI130 - Grey / Beige Glass Wood Look
A176: 2017-05-31 | B176: VEMI131 - Grey / Dark Grey Glass Wood Look
A177: 2017-05-31 | B177: VEMI134 - Beige Mix Glass Wood Look
A178: 2017-05-31 | B178: VEMI135 - Beige / Brown Mix Glass Wood Look
A179: 2017-05-31 | B179: VEMI136 - Black / Grey Mix Glass Wood Look
A180: 2017-05-31 | B180: VEMI137 - Grey Mix Glass Wood Look
A181: 2017-05-31 | B181: VEMI138 - Grey / Green / Beige Stone & Glass Mix
A182: 2018-01-02 | B182: Cement Tiles - Colors and patterns added.
A183: 2018-06-12 | B183: CEBL17 Ceramic Patchwork Square Blue 11.8" x 11.8" Mosaic
A184: 2018-06-12 | B184: CEBL18 Ceramic Patchwork Square Blue & White Mix 11.8" x 11.8" Mosaic
A185: 2018-06-12 | B185: CEBL19 Ceramic Patchwork Diamond Blue 11.8" x 11.8" Mosaic
A186: 2018-06-12 | B186: CEMI09 Ceramic Patchwork Square Black & White Mix 11.8" x 11.8" Mosaic
A187: 2018-06-12 | B187: CEMI11 Ceramic Patchwork Rectangle Multi Color 3" x 11.8" Wall Field
A188: 2018-06-12 | B188: GABE19 Sliced Onyx Crema Polished 11.8" x 11.8" Mosaic
A189: 2018-06-12 | B189: GABE20 Sliced Onyx Yellow Brown Polished 11.8" x 11.8" Mosaic
A190: 2018-06-12 | B190: GAGR09 Marble Striped Sliced Tumbled Grey 11.8" x 11.8" Mosaic
A191: 2018-06-12 | B191: GAMI94 Deco Print Marble Grey Matte 11.8" x 11.8" Mosaic
A192: 2018-06-12 | B192: GAVE09 Sliced Onyx Jade Brown Polished 11.8" x 11.8" Mosaic
A193: 2018-06-12 | B193: MABE124 Sandstone Circle Design Sand 4" x 4" Field
A194: 2018-06-12 | B194: MAGR107 Hexagon Limestone Multi Finish Grey 12.5" x 12.5" Mosaic
A195: 2018-06-12 | B195: MAGR108 Brick Limestone Multi Finish Grey 11.7" x 11.7" Mosaic
A196: 2018-06-12 | B196: MAGR109 Brick Limestone Sand Blasted Grey 11.7" x 11.7" Mosaic
A197: 2018-06-12 | B197: MAGR110 3D Diamond Limestone Multi Finish Grey 12.4" x 9.5" Mosaic
A198: 2018-06-12 | B198: MAGR111 Sandstone Circle Design Sand Blasted Grey 9 PCS/CTN 4" x 4" Field
A199: 2018-06-12 | B199: MAMI163 Hexagon Mix Glass / Marble Silver Grey 9.8" x 12" Mosaic
A200: 2018-06-12 | B200: MAMI164 Mother Of Pearl Glass / Marble White Mix Brick 11.4" x 12" Mosaic
A201: 2018-06-12 | B201: MAMI165 Mother Of Pearl Glass / Marble Taupe Grey Mix Brick 11.4" x 12" Mosaic
A202: 2018-06-12 | B202: MAMI166 Mother Of Pearl Glass / Marble White Mix 11.7" x 11.7" Mosaic
... 416 more rows
